Cogmind - Beta 16.1 @@@ ROGUE MODE // 2026.03.01 @ 22:22:33 // Winter2019/RPGLIKE Player: badjay Result: Destroyed by Tracker with Linked Autogun Performance ------------- Evolutions (7) 3500 Regions Visited (29) 5800 Robots Destroyed (599) 2995 Value Destroyed (30929) 30929 Prototype IDs (39) 780 Alien Tech Used (4) 800 Bonus (20414) 20414 TOTAL SCORE: 65218 Bonus ------- Triggered High Security 500 High Alert Combat Kills 10225 Follower Combat Kills 1682 Hunted by Unchained 500 Network Hubs Disabled 600 Met Warlord at Base 500 MAIN.C Attacked Warlord 500 Warlord Defense Kills 2236 Built Enhanced Grunts 300 Met R17 at Cetus 500 Met R17 at Research 2000 Scanned by Researcher 500 Pursued by Intercept 500 Friendly Fire -129 Cogmind --------- Core Integrity 0/600 Matter 231/300 Energy 327/340 System Corruption 0% Temperature Warm (155) +ITN Movement Flying (96) Ox1 Location -3/Section 7 Parts ------- > --- POWER (1) -------- Graviton Reactor > --- PROPULSION (5) --- Cooled VTOL Module Cooled VTOL Module Cooled Nuclear Pulse Thruster Improved Diametric Drive Improved Diametric Drive > --- UTILITY (12) ----- Structural Scanner Experimental Targeting Computer Experimental Targeting Computer Core Analyzer Experimental Armor Integrity Analyzer Improved Kinecellerator Advanced Weapon Cycler Stasis Canceller Advanced Reaction Control System Improved Phase Shifter Improved System Guard > --- WEAPON (5) ------- Improved Heavy Machine Gun Improved KE Penetrator Railgun Railgun Railgun > --- INVENTORY (4) ---- Q-thruster High-capacity Matter Pod (200) Spacefold Activator Peak State ------------ > --- POWER ------------ Graviton Reactor > --- PROPULSION ------- Cooled VTOL Module Cooled Nuclear Pulse Thruster Q-thruster Improved Diametric Drive Improved Diametric Drive > --- UTILITY ---------- Structural Scanner Experimental Targeting Computer Experimental Targeting Computer Experimental Target Analyzer Core Analyzer Experimental Armor Integrity Analyzer Improved Kinecellerator Advanced Weapon Cycler Stasis Canceller Advanced Reaction Control System Improved Phase Shifter Improved System Guard > --- WEAPON ----------- Improved Heavy Machine Gun Improved KE Penetrator Railgun Railgun Railgun > --- INVENTORY -------- Cooled VTOL Module High-capacity Matter Pod Spacefold Activator [Rating: 159] Favorites ----------- Power Enhanced Nuclear Core Engine Light Ion Engine Power Core Enhanced Nuclear Core Reactor Graviton Reactor Propulsion Cooled VTOL Module Flight Unit Cooled VTOL Module Utility Experimental Targeting Computer Device Structural Scanner Processor Experimental Targeting Computer Hackware Makeshift Hacking Suite Protection Centrium Medium Armor Plating Artifact Spacefold Activator Weapon Coil Gun Energy Gun Advanced Variable Charge Gun Ballistic Gun Coil Gun Slashing Weapon Segregator Piercing Weapon Vortex Lance Build | -11 -10 -10 -10 -9 -8 -8 -7 -7 -7 -6 -6 -6 -6 -5 -5 -5 -5 -5 -5 -5 -4 -4 -4 -4 -4 -4 -3 -3 -3 ------- Run | Yrd Mat Min Exi Min Mat Sto Fac Was Fac Fac Low Low Zio Pro Fac Was Fac Upp Upp War Pro Fac Ext Cet Arc Hub Res Qua Sec Slots Evolved 19 | 1 3 . . . 4 1 1 1 2 3 . . . . 1 . . . . . 1 . . . . . . . 1 Power . | . . . . . . . . . . . . . . . . . . . . . . . . . . . . . . Propulsion 4 | . 1 . . . 1 1 . 1 . . . . . . . . . . . . . . . . . . . . . Utility 11 | . 1 . . . 2 . 1 . 1 3 . . . . 1 . . . . . 1 . . . . . . . 1 Weapon 4 | 1 1 . . . 1 . . . 1 . . . . . . . . . . . . . . . . . . . . Parts Attached 111 | 2 8 . . 2 11 6 1 1 13 10 . . 1 1 1 1 5 1 . 2 7 10 3 2 1 2 12 2 6 Power 14 | . 2 . . 1 . 1 . . 1 . . . . . . . 1 . . 1 . 1 2 . . 1 3 . . Engine 5 | . 2 . . 1 . 1 . . . . . . . . . . . . . 1 . . . . . . . . . Core 3 | . . . . . . . . . 1 . . . . . . . . . . . . 1 . . . 1 . . . Reactor 6 | . . . . . . . . . . . . . . . . . 1 . . . . . 2 . . . 3 . . Propulsion 23 | . 3 . . 1 3 1 . 1 4 . . . . . . . 2 . . . . 3 . . . . 4 . 1 Treads . | . . . . . . . . . . . . . . . . . . . . . . . . . . . . . . Leg . | . . . . . . . . . . . . . . . . . . . . . . . . . . . . . . Wheel . | . . . . . . . . . . . . . . . . . . . . . . . . . . . . . . Hover . | . . . . . . . . . . . . . . . . . . . . . . . . . . . . . . Flight 23 | . 3 . . 1 3 1 . 1 4 . . . . . . . 2 . . . . 3 . . . . 4 . 1 Utility 42 | . 2 . . . 3 1 1 . 1 4 . . 1 1 1 1 2 1 . . 6 5 . 1 . . 5 1 5 Device 26 | . 1 . . . 2 . 1 . . 1 . . 1 . 1 . 2 1 . . 4 4 . . . . 5 . 3 Storage . | . . . . . . . . . . . . . . . . . . . . . . . . . . . . . . Processor 13 | . 1 . . . 1 1 . . 1 3 . . . 1 . 1 . . . . 1 1 . . . . . 1 1 Hackware 1 | . . . . . . . . . . . . . . . . . . . . . 1 . . . . . . . . Protection 1 | . . . . . . . . . . . . . . . . . . . . . . . . 1 . . . . . Artifact 1 | . . . . . . . . . . . . . . . . . . . . . . . . . . . . . 1 Weapon 32 | 2 1 . . . 5 3 . . 7 6 . . . . . . . . . 1 1 1 1 1 1 1 . 1 . Energy Gun 1 | . . . . . . . . . . . . . . . . . . . . . . . . 1 . . . . . Energy Cannon . | . . . . . . . . . . . . . . . . . . . . . . . . . . . . . . Ballistic Gun 29 | 2 1 . . . 5 3 . . 7 6 . . . . . . . . . . . 1 1 . 1 1 . 1 . Ballistic Cannon . | . . . . . . . . . . . . . . . . . . . . . . . . . . . . . . Launcher . | . . . . . . . . . . . . . . . . . . . . . . . . . . . . . . Special Weapon . | . . . . . . . . . . . . . . . . . . . . . . . . . . . . . . Impact Weapon . | . . . . . . . . . . . . . . . . . . . . . . . . . . . . . . Slashing Weapon 1 | . . . . . . . . . . . . . . . . . . . . . 1 . . . . . . . . Piercing Weapon 1 | . . . . . . . . . . . . . . . . . . . . 1 . . . . . . . . . Special Melee Weapon . | . . . . . . . . . . . . . . . . . . . . . . . . . . . . . . Unidentified Prototypes 38 | . . . . . 1 2 . 1 5 1 . . 1 . . 1 3 . . 1 . 4 . 2 . 1 6 3 6 Parts Lost 1 | . 1 . . . . . . . . . . . . . . . . . . . . . . . . . . . . Power 1 | . 1 . . . . . . . . . . . . . . . . . . . . . . . . . . . . Propulsion . | . . . . . . . . . . . . . . . . . . . . . . . . . . . . . . Utility . | . . . . . . . . . . . . . . . . . . . . . . . . . . . . . . Weapon . | . . . . . . . . . . . . . . . . . . . . . . . . . . . . . . Highest Loss Streak 1 | . 1 . . . . . . . . . . . . . . . . . . . . . . . . . . . . To Critical Strikes . | . . . . . . . . . . . . . . . . . . . . . . . . . . . . . . Average Backups 1 | . . . . . . 1 1 1 1 1 2 2 2 2 2 2 2 2 2 2 2 2 2 2 2 2 2 2 2 Power . | . . . . . . . . . . . . . . . . . . . . . . . . . . . . . . Propulsion . | . . . . . . . . . . . . . . . . . . . . . . . . . . . . . . Utility 1 | . . . . . . 1 1 1 1 1 2 2 2 2 2 2 2 2 2 2 2 2 2 2 2 2 2 2 2 Weapon . | . . . . . . . . . . . . . . . . . . . . . . . . . . . . . . Tool/Special . | . . . . . . . . . . . . . . . . . . . . . . . . . . . . . . Unused Backups 5 | . . . . . 1 1 . . 1 . . . . . . . . . . . . . . . . . . 1 1 Power . | . . . . . . . . . . . . . . . . . . . . . . . . . . . . . . Propulsion . | . . . . . . . . . . . . . . . . . . . . . . . . . . . . . . Utility 4 | . . . . . 1 1 . . 1 . . . . . . . . . . . . . . . . . . . 1 Weapon . | . . . . . . . . . . . . . . . . . . . . . . . . . . . . . . Tool/Special 1 | . . . . . . . . . . . . . . . . . . . . . . . . . . . . 1 . Average Slot Usage (%) 98 | . 84 100 100 100 96 99 100 100 99 100 100 100 100 100 95 95 100 100 100 99 99 99 100 99 100 100 99 99 99 Engine 2 | . 5 12 12 12 8 7 7 6 1 . . . . . . . . . . . . . . . . . . . . Core 1 | . . . . . . . . . 3 5 5 5 5 5 4 4 4 4 4 4 4 4 . . . . . . . Reactor 1 | . . . . . . . . . . . . . . . . . . . . . . . 3 4 4 3 4 4 4 Flight 23 | . 20 25 25 25 23 28 30 32 29 25 25 25 25 25 23 23 23 23 23 23 22 22 22 22 22 22 21 22 21 Device 20 | . 15 12 12 12 16 23 23 26 23 20 20 20 20 20 19 19 19 21 23 23 22 22 22 21 22 22 22 22 24 Processor 20 | . 4 12 12 12 12 7 7 6 10 22 25 25 25 25 23 23 28 25 23 23 22 26 27 27 27 27 27 27 26 Ballistic Gun 26 | . 37 37 37 37 34 30 30 26 29 25 25 25 25 25 23 23 23 23 23 22 22 22 22 21 22 22 22 21 21 Peak Build Rating 159 | 2 8 8 8 8 30 43 47 54 73 92 92 92 100 94 96 106 112 112 112 116 124 129 135 137 137 139 148 147 159 Average Rating 92 | 1 5 8 8 8 20 39 43 53 66 87 92 92 92 93 95 98 108 111 112 111 118 126 132 134 136 138 143 145 150 On Entrance 82 | . 2 8 8 8 8 30 43 47 54 73 92 92 92 92 94 96 106 110 112 112 112 124 129 135 135 137 139 146 146 Avg Prop Armor Cover (%) 1 | . . . . . . . . 1 . . . . . . . . . . . . . . . . . . . . . Naked Turns . | . . . . . . . . . . . . . . . . . . . . . . . . . . . . . . Heaviest Build 59 | 2 7 7 7 7 18 23 27 27 32 39 39 39 39 39 40 40 40 41 41 41 44 45 53 53 54 55 55 55 59 Greatest Support 69 | 3 8 8 8 8 20 25 30 35 37 43 40 40 40 40 40 46 41 41 50 41 46 57 54 54 54 59 69 68 68 Greatest Overweight (x) 1 | . . . . . . . . . . . . . . . . . 1 . . . . . . . . . 1 . . Average Overweight (x) . | . . . . . . . . . . . . . . . . . . . . . . . . . . . . . . Largest Inventory Capacity 4 | . . . . . 1 1 1 2 2 3 3 3 3 3 3 3 3 3 3 3 3 3 3 3 3 3 3 3 4 Average Capacity 2 | . . . . . . 1 1 1 2 2 3 3 3 3 3 3 3 3 3 3 3 3 3 3 3 3 3 3 3 Most Carried 4 | . . . . . 1 1 1 2 2 3 3 3 3 3 3 3 3 3 3 3 3 3 3 3 3 3 3 3 4 Average Carried 2 | . . . . . . 1 1 1 2 2 3 3 3 3 3 3 3 3 3 2 3 3 3 3 3 3 3 2 2 Final Capacity 4 | . . . . . 1 1 1 2 2 3 3 3 3 3 3 3 3 3 3 3 3 3 3 3 3 3 3 3 4 Final Carried 3 | . . . . . 1 1 1 2 2 3 3 3 3 3 3 3 3 3 3 3 3 3 3 3 3 3 3 3 3 Class Distribution -------------------- 48% | Hacker-Sprinter 23% | Sprinter 10% | Scavenger-Gunner 7% | Commander-Sprinter 5% | Scavenger-Sprinter 3% | Mutant Dominant Class ---------------- Mutant | -10/Materials Scavenger-Gunner | -10/Mines Scavenger-Gunner | -10/Exiles Scavenger-Gunner | -9/Mines Scavenger-Sprinter | -8/Materials Sprinter | -8/Storage Sprinter | -7/Factory Sprinter | -7/Waste Sprinter | -7/Factory Sprinter | -6/Factory Sprinter | -6/Lower Caves Sprinter | -6/Lower Caves Sprinter | -6/Zion Sprinter | -5/Proximity Caves Hacker-Sprinter | -5/Factory Hacker-Sprinter | -5/Waste Hacker-Sprinter | -5/Factory Hacker-Sprinter | -5/Upper Caves Hacker-Sprinter | -5/Upper Caves Hacker-Sprinter | -5/Warlord Hacker-Sprinter | -4/Proximity Caves Hacker-Sprinter | -4/Factory Hacker-Sprinter | -4/Extension Commander-Sprinter | -4/Cetus Commander-Sprinter | -4/Archives Hacker-Sprinter | -4/Hub_04(d) Hacker-Sprinter | -3/Research Hacker-Sprinter | -3/Quarantine Hacker-Sprinter | -3/Section 7 Resources | -11 -10 -10 -10 -9 -8 -8 -7 -7 -7 -6 -6 -6 -6 -5 -5 -5 -5 -5 -5 -5 -4 -4 -4 -4 -4 -4 -3 -3 -3 ----------- Run | Yrd Mat Min Exi Min Mat Sto Fac Was Fac Fac Low Low Zio Pro Fac Was Fac Upp Upp War Pro Fac Ext Cet Arc Hub Res Qua Sec Matter Collected 17956 | 160 311 24 . 34 851 863 48 20 1312 990 376 240 20 530 250 . 960 270 569 810 1980 1225 1375 370 120 632 1424 949 1243 Remotely . | . . . . . . . . . . . . . . . . . . . . . . . . . . . . . . Salvage Created 31113 | . 690 85 . 58 1452 1121 89 . 1698 1749 322 599 . 1289 835 . 2048 484 1025 773 3942 2053 3387 660 254 896 3024 991 1589 Parts 1546 | . 37 10 . 8 73 82 5 . 108 84 22 29 . 39 25 . 89 21 46 41 181 135 141 33 12 42 125 62 96 Haulers Intercepted 22 | . 2 . . . 5 . . . 5 2 . . . . 2 . 3 . . . 1 . . . . . 2 . . Recyclers Shooed 1 | . . . . . . . . . . . . . . . . . 1 . . . . . . . . . . . . Parts Field Recycled . | . . . . . . . . . . . . . . . . . . . . . . . . . . . . . . Retrieved Matter . | . . . . . . . . . . . . . . . . . . . . . . . . . . . . . . Parts Self-Destructed 297 | . . . . . . . . . . . 24 9 . 39 . . . 15 34 . 176 . . . . . . . . Prevented 8 | . . . . . . . . . . . . . . . . . . 5 3 . . . . . . . . . . Parts Restored . | . . . . . . . . . . . . . . . . . . . . . . . . . . . . . . Kills | -11 -10 -10 -10 -9 -8 -8 -7 -7 -7 -6 -6 -6 -6 -5 -5 -5 -5 -5 -5 -5 -4 -4 -4 -4 -4 -4 -3 -3 -3 ------- Run | Yrd Mat Min Exi Min Mat Sto Fac Was Fac Fac Low Low Zio Pro Fac Was Fac Upp Upp War Pro Fac Ext Cet Arc Hub Res Qua Sec Combat Hostiles Destroyed 510 | . 15 2 . 3 24 24 1 . 35 28 11 8 . 20 6 . 28 7 20 19 61 38 47 12 4 17 41 15 24 Guns 509 | . 15 2 . 3 24 24 1 . 35 28 11 8 . 20 6 . 28 7 20 19 61 38 47 12 4 17 41 15 23 AOE 1 | . . . . . . . . . . . . . . . . . . . . . . . . . . . . . 1 Classes Destroyed 24 | . 6 . . . 2 2 . . 2 1 2 2 . . . . . . . 1 2 . . . . . 1 1 2 Worker 8 | . 1 1 . . . . . . 1 . . . . . . . 1 . . . . 2 . . . 1 . 1 . Builder 8 | . . . . . . . . . 1 . . . . . . . . . . . . . . . . 1 2 1 3 Tunneler 1 | . . . . . . . . . . . . . . . . . . . . . . . . . . . 1 . . Hauler 22 | . 2 . . . 5 . . . 5 2 . . . . 2 . 3 . . . 1 . . . . . 2 . . Recycler 9 | . 3 . . . . . . . 1 . . . . . . . 1 . . . 1 1 2 . . . . . . Carrier 1 | . . . . . . . . . . . 1 . . . . . . . . . . . . . . . . . . Mechanic 1 | . . . . . . . . . . . . . . . . . . . . . . . . . . . . . 1 Operator 6 | . . . . . . . . . . 1 . . . . 1 . 1 . . . . 1 1 . . . 1 . . Watcher 27 | . 2 . . . 2 1 . . 4 2 . . . . 2 . 2 . . . 2 4 3 1 . . . 2 . Swarmer 81 | . 6 . . 3 3 . . . 13 2 3 . . 4 . . . . 3 . 8 8 4 4 . 4 11 . 5 Saboteur 5 | . . . . . . . . . . . . . . . . . . . . . 5 . . . . . . . . Grunt 192 | . 9 2 . . 12 11 . . 14 15 6 1 . 10 3 . 8 4 4 10 20 18 10 1 . 5 20 3 6 Brawler 9 | . . . . . . . . . . . . . . 2 1 . 2 . 1 . 3 . . . . . . . . Duelist 20 | . . . . . 1 . . . . 3 1 . . 2 . . . 1 1 . 6 . 1 . . . 1 . 3 Protector 8 | . . . . . . 2 . . . . . . . . . . . . . 2 1 . 1 . . 1 . . 1 Researcher 1 | . . . . . . . . . . . . . . . . . . . . . . . . . . . . 1 . Sentry 85 | . . . . . 8 10 1 . 3 7 . . . 1 2 . 4 1 2 . 10 6 8 . 4 3 7 6 2 Demolisher 2 | . . . . . . . . . . . . . . . . . . . . 2 . . . . . . . . . Specialist 2 | . . . . . . . . . . . . . . . . . . . . . 2 . . . . . . . . Hunter 30 | . . . . . . 1 . . 3 . . 1 . . . . 10 1 . . 4 2 2 . . 3 1 2 . Programmer 28 | . . . . . . . . . 2 1 . . . 2 . . 4 . 4 3 . 2 1 . . . 1 4 4 Behemoth 11 | . . . . . . . . . . . 1 . . . . . . . 1 2 2 2 2 . . . 1 . . Cetus Guard 7 | . . . . . . . . . . . . . . . . . . . . . . . . 7 . . . . . S7 Guard 1 | . . . . . . . . . . . . . . . . . . . . . . . . . . . . . 1 Lightning 1 | . . . . . . . . . . . . . . . . . . . . . . . . . . 1 . . . Alpha 7 2 | . . . . . . . . . . . . . . . . . . . . . . . . . . . . . 2 Thug 13 | . . . . . . . . . . . . 3 . . . . . . 1 . . . 9 . . . . . . Savage 11 | . . . . . . . . . . . . 3 . . . . . . 3 . . . 5 . . . . . . Butcher 3 | . . . . . . . . . . . . 1 . . . . . . . . . . 2 . . . . . . Guerrilla 2 | . . . . . . . . . . . . . . . . . . . . . . . 2 . . . . . . Mutant 2 | . . . . . . . . . . . . 1 . . . . . 1 . . . . . . . . . . . Best Kill Streak 17 | . 7 3 . 3 5 15 1 . 14 8 5 5 . 7 6 . 16 5 12 9 11 11 17 10 4 7 8 6 13 Combat Bots Only 16 | . 4 2 . 3 4 7 1 . 14 8 4 5 . 7 3 . 14 5 12 9 11 11 16 9 4 7 7 6 11 Max Kills in Single Turn 3 | . 2 1 . 1 1 1 1 . 3 2 2 2 . 2 1 . 3 2 2 2 3 3 3 3 1 2 3 2 3 Gunslinging 2 | . 1 . . . . . . . 1 1 1 1 . 1 . . 1 1 . 1 2 1 2 2 . 1 2 1 1 Exploded 1 | . . . . . . . . . . . . . . . . . . . . . . . . . . . . . 1 Melee . | . . . . . . . . . . . . . . . . . . . . . . . . . . . . . . Uniques/NPCs Destroyed . | . . . . . . . . . . . . . . . . . . . . . . . . . . . . . . Combat | -11 -10 -10 -10 -9 -8 -8 -7 -7 -7 -6 -6 -6 -6 -5 -5 -5 -5 -5 -5 -5 -4 -4 -4 -4 -4 -4 -3 -3 -3 -------- Run | Yrd Mat Min Exi Min Mat Sto Fac Was Fac Fac Low Low Zio Pro Fac Was Fac Upp Upp War Pro Fac Ext Cet Arc Hub Res Qua Sec Hostile Shots Fired 1148 | . 86 9 . 19 97 56 9 . 96 65 25 11 . 11 1 . 62 22 39 6 81 94 75 8 2 16 59 44 155 Missed 652 | . 32 6 . 7 39 33 8 . 56 39 15 6 . 4 . . 34 12 22 1 48 74 45 6 1 9 44 28 83 Hits 496 | . 54 3 . 12 58 23 1 . 40 26 10 5 . 7 1 . 28 10 17 5 33 20 30 2 1 7 15 16 72 Melee 1 | . . . . . . . . . . . . . . . . . . . . . 1 . . . . . . . . Projectile 495 | . 54 3 . 12 58 23 1 . 40 26 10 5 . 7 1 . 28 10 17 5 32 20 30 2 1 7 15 16 72 AOE 1 | . . . . . . . . . . . . . . . . . . . . . . . . . . . . . 1 Critical Strikes 20 | . 1 . . . 2 . . . 1 . . . . 2 . . . 1 . 1 . 1 3 . . 2 . 3 3 Part Disruptions 2 | . . . . . . . . . . . . . . . . . . . . . . . . . . . . 1 1 Damage Taken 9562 | . 737 31 . 123 826 357 11 . 593 300 195 103 . 139 19 . 590 197 176 162 834 536 555 35 24 357 576 428 1658 Core 7744 | . 607 29 . 105 702 293 8 . 472 239 151 80 . 108 15 . 483 157 143 134 674 424 458 27 19 300 463 341 1312 Absorbed by Shields 146 | . . . . . . . . . . . . . . . . . . . . . . . 111 35 . . . . . Redirected to Core 6361 | . 359 8 . 57 428 235 8 . 402 194 151 80 . 108 15 . 376 137 122 105 580 402 345 27 19 216 420 319 1248 Regen/Repaired (Parts) 21 | . . . . . . . . 21 . . . . . . . . . . . . . . . . . . . . . Core Remaining (%) 92 | 100 . . . 75 . 92 . . 100 . . . . 100 . . . . . . 79 . . . . 100 . . . Volleys Fired 881 | . 77 8 . 4 78 53 3 . 51 41 19 12 . 26 12 . 42 13 28 28 93 54 60 15 5 26 51 34 48 Largest 5 | . 3 3 . 3 4 4 4 . 5 5 5 5 . 5 5 . 5 5 5 5 5 5 5 5 5 5 5 5 5 Hottest 155 | . 60 60 . 60 93 98 100 . 131 135 135 135 . 135 135 . 135 135 135 135 135 140 145 145 145 155 155 155 153 Shots Fired 4012 | . 171 24 2 12 300 212 12 . 255 206 94 60 . 130 60 . 210 65 141 140 465 270 300 75 25 126 255 166 236 Gun 4012 | . 171 24 2 12 300 212 12 . 255 206 94 60 . 130 60 . 210 65 141 140 465 270 300 75 25 126 255 166 236 Cannon . | . . . . . . . . . . . . . . . . . . . . . . . . . . . . . . Launcher . | . . . . . . . . . . . . . . . . . . . . . . . . . . . . . . Special . | . . . . . . . . . . . . . . . . . . . . . . . . . . . . . . Kinetic 4012 | . 171 24 2 12 300 212 12 . 255 206 94 60 . 130 60 . 210 65 141 140 465 270 300 75 25 126 255 166 236 Thermal . | . . . . . . . . . . . . . . . . . . . . . . . . . . . . . . Explosive . | . . . . . . . . . . . . . . . . . . . . . . . . . . . . . . Electromagnetic . | . . . . . . . . . . . . . . . . . . . . . . . . . . . . . . Robot Hit Streak 83 | . 24 9 . 16 18 43 26 . 48 34 36 45 . 47 57 . 83 36 32 49 69 67 42 39 19 34 66 83 36 Robot Miss Streak 4 | . 3 2 . 2 3 2 . . 1 4 1 1 . 1 1 . 1 1 2 3 1 2 2 1 . 2 2 2 1 Penetration Max 2 | . . . . . . . . . . 1 1 1 . 1 . . 1 1 1 1 2 2 2 1 . 2 1 2 2 Secondary Targets 124 | . 3 1 . 1 6 3 . . 13 4 2 3 . 5 . . 7 3 . 6 13 7 13 5 . 2 15 8 4 Max Gunslinging Chain 2 | . 1 1 . 1 1 1 . . 2 1 1 1 . 2 . . 2 1 . 1 2 1 2 2 . 1 2 2 1 Shots Hit Robots 2908 | . 131 16 . 8 211 154 12 . 178 125 71 45 . 97 41 . 152 42 93 101 345 187 220 56 14 94 199 135 181 Core Hits 1359 | . 52 5 . 5 77 58 2 . 75 62 27 18 . 39 21 . 78 19 42 50 159 102 138 31 7 45 105 54 88 Critical Kills 115 | . . . . . . 2 1 . 7 6 2 2 . 2 1 . 11 2 2 3 21 11 11 8 4 4 7 4 4 Critical Parts Destroyed 113 | . . . . . 1 . . . 5 4 6 3 . 7 3 . 5 . 3 2 16 9 11 6 1 4 9 5 13 Critical Strikes 235 | . . . . . 1 2 1 . 12 11 8 5 . 9 4 . 16 3 6 5 39 20 24 14 5 8 16 9 17 Destroy 235 | . . . . . 1 2 1 . 12 11 8 5 . 9 4 . 16 3 6 5 39 20 24 14 5 8 16 9 17 Melee Attacks . | . . . . . . . . . . . . . . . . . . . . . . . . . . . . . . Impact . | . . . . . . . . . . . . . . . . . . . . . . . . . . . . . . Slashing . | . . . . . . . . . . . . . . . . . . . . . . . . . . . . . . Piercing . | . . . . . . . . . . . . . . . . . . . . . . . . . . . . . . Sneak Attacks . | . . . . . . . . . . . . . . . . . . . . . . . . . . . . . . Combat Hostiles . | . . . . . . . . . . . . . . . . . . . . . . . . . . . . . . Follow-up Attacks . | . . . . . . . . . . . . . . . . . . . . . . . . . . . . . . Damage Inflicted 72046 | . 1074 130 . 71 2479 2364 211 . 3559 2940 1728 964 . 2707 1048 . 3963 1120 2706 2667 9154 5434 7576 1467 369 2815 5799 3655 6046 Guns 71740 | . 1074 130 . 71 2479 2364 211 . 3559 2940 1728 964 . 2707 1048 . 3963 1120 2706 2667 9120 5434 7576 1467 369 2815 5799 3655 5774 Cannons . | . . . . . . . . . . . . . . . . . . . . . . . . . . . . . . Explosions 306 | . . . . . . . . . . . . . . . . . . . . . 34 . . . . . . . 272 Melee . | . . . . . . . . . . . . . . . . . . . . . . . . . . . . . . Ramming . | . . . . . . . . . . . . . . . . . . . . . . . . . . . . . . Kinetic 71740 | . 1074 130 . 71 2479 2364 211 . 3559 2940 1728 964 . 2707 1048 . 3963 1120 2706 2667 9120 5434 7576 1467 369 2815 5799 3655 5774 Thermal 34 | . . . . . . . . . . . . . . . . . . . . . 34 . . . . . . . . Explosive 272 | . . . . . . . . . . . . . . . . . . . . . . . . . . . . . 272 Electromagnetic . | . . . . . . . . . . . . . . . . . . . . . . . . . . . . . . Impact . | . . . . . . . . . . . . . . . . . . . . . . . . . . . . . . Slashing . | . . . . . . . . . . . . . . . . . . . . . . . . . . . . . . Piercing . | . . . . . . . . . . . . . . . . . . . . . . . . . . . . . . Highest Corruption 4 | . 2 2 2 2 . . . . 1 4 4 4 4 1 . . 2 2 2 2 1 . . . . . . . . Average Corruption 2 | . 1 2 2 2 . . . . 1 3 4 4 4 1 . . 2 2 2 2 1 . . . . . . . . Corruption Purged . | . . . . . . . . . . . . . . . . . . . . . . . . . . . . . . Corruption Blocked . | . . . . . . . . . . . . . . . . . . . . . . . . . . . . . . Effects 43 | . 2 6 3 1 . . . . 2 4 6 2 . 3 . . . 5 7 . 2 . . . . . . . . Message Errors 14 | . 1 1 1 . . . . . . . 3 2 . 1 . . . 2 3 . . . . . . . . . . Matter Fused 3 | . . . . . . . . . 1 . . . . . . . . . 1 . 1 . . . . . . . . Heat Flow Errors 3 | . . 2 . . . . . . . 1 . . . . . . . . . . . . . . . . . . . Energy Discharges 6 | . 1 . . 1 . . . . 1 1 . . . . . . . 1 1 . . . . . . . . . . Data Loss (minor) 6 | . . 2 . . . . . . . 1 2 . . 1 . . . . . . . . . . . . . . . Data Loss (major) 3 | . . . . . . . . . . . . . . . . . . 1 1 . 1 . . . . . . . . Misfires 4 | . . . 2 . . . . . . 1 . . . . . . . . 1 . . . . . . . . . . Alerts 3 | . . 1 . . . . . . . . . . . 1 . . . 1 . . . . . . . . . . . Weapon Failures 1 | . . . . . . . . . . . 1 . . . . . . . . . . . . . . . . . . Overload Shots . | . . . . . . . . . . . . . . . . . . . . . . . . . . . . . . Overflow Damage 76 | . . . . . . . . . . . . . . . . . . . . . . . . . . . . . 76 Projectiles . | . . . . . . . . . . . . . . . . . . . . . . . . . . . . . . Explosions 76 | . . . . . . . . . . . . . . . . . . . . . . . . . . . . . 76 Melee . | . . . . . . . . . . . . . . . . . . . . . . . . . . . . . . Knockbacks . | . . . . . . . . . . . . . . . . . . . . . . . . . . . . . . Impact . | . . . . . . . . . . . . . . . . . . . . . . . . . . . . . . Kinetic . | . . . . . . . . . . . . . . . . . . . . . . . . . . . . . . Secondary . | . . . . . . . . . . . . . . . . . . . . . . . . . . . . . . Self-Inflicted Damage 103 | . . . . . . . . . . . . . . . . . . . . . . . . . . . . . 103 Shots 1 | . . . . . . . . . . . . . . . . . . . . . . . . . . . . . 1 Rammed . | . . . . . . . . . . . . . . . . . . . . . . . . . . . . . . Targets Rammed . | . . . . . . . . . . . . . . . . . . . . . . . . . . . . . . Kicked . | . . . . . . . . . . . . . . . . . . . . . . . . . . . . . . Crushed . | . . . . . . . . . . . . . . . . . . . . . . . . . . . . . . Highest Temperature 356 | . 106 281 8 64 311 131 66 . 296 335 273 70 . 40 33 293 88 119 96 108 131 146 216 171 121 335 180 16 356 Average Temperature 67 | . 27 91 5 31 66 40 38 . 104 99 66 24 . 20 17 192 25 46 38 41 48 49 66 66 60 115 69 5 117 Received Heat Transfer 1787 | . 195 18 . . 387 144 6 . 123 114 57 45 . 45 9 . 45 45 9 . 108 63 110 . . . 60 51 153 Effects 8 | . . . . . 1 . . . 3 . . . . . . . . . . . . . . . . 4 . . . Shutdowns 1 | . . . . . . . . . . . . . . . . . . . . . . . . . . 1 . . . Energy Bleed 1 | . . . . . 1 . . . . . . . . . . . . . . . . . . . . . . . . Interference 6 | . . . . . . . . . 3 . . . . . . . . . . . . . . . . 3 . . . Siege Activations . | . . . . . . . . . . . . . . . . . . . . . . . . . . . . . . Martial Activations . | . . . . . . . . . . . . . . . . . . . . . . . . . . . . . . Shielding Activations . | . . . . . . . . . . . . . . . . . . . . . . . . . . . . . . Robots Disrupted . | . . . . . . . . . . . . . . . . . . . . . . . . . . . . . . Combat Hostiles . | . . . . . . . . . . . . . . . . . . . . . . . . . . . . . . Robots Corrupted . | . . . . . . . . . . . . . . . . . . . . . . . . . . . . . . Combat Hostiles . | . . . . . . . . . . . . . . . . . . . . . . . . . . . . . . Parts Fried 1 | . . . . . . . . . . . . . . . . . . . . . . . . . . . . . 1 Impact Corruptions . | . . . . . . . . . . . . . . . . . . . . . . . . . . . . . . Robots Melted . | . . . . . . . . . . . . . . . . . . . . . . . . . . . . . . Combat Hostiles . | . . . . . . . . . . . . . . . . . . . . . . . . . . . . . . Parts Melted 5 | . . . . . . . . . . . . . . . . . . . . . 5 . . . . . . . . Heat Transferred 80 | . . . . . . . . . . . . . . . . . . . . . 80 . . . . . . . . Parts Sabotaged . | . . . . . . . . . . . . . . . . . . . . . . . . . . . . . . Parts Stolen . | . . . . . . . . . . . . . . . . . . . . . . . . . . . . . . Parts Stripped . | . . . . . . . . . . . . . . . . . . . . . . . . . . . . . . Power Chain Reactions . | . . . . . . . . . . . . . . . . . . . . . . . . . . . . . . Alert | -11 -10 -10 -10 -9 -8 -8 -7 -7 -7 -6 -6 -6 -6 -5 -5 -5 -5 -5 -5 -5 -4 -4 -4 -4 -4 -4 -3 -3 -3 ------- Run | Yrd Mat Min Exi Min Mat Sto Fac Was Fac Fac Low Low Zio Pro Fac Was Fac Upp Upp War Pro Fac Ext Cet Arc Hub Res Qua Sec Maximum Alert Level 5 | . 1 . . . 2 2 1 . 5 5 . . . . 1 . 3 . . . . 4 5 4 3 4 4 3 4 Low Security (%) 22 | 100 80 100 . 100 40 30 . 100 5 . . . . . 53 100 28 . . . . . . . . . . . . Level 1 10 | . 19 . . . 58 22 100 . 2 . . . . . 46 . 6 . . . . . . . . 39 . . . Level 2 11 | . . . . . . 46 . . 25 . . . . . . . 43 . . . . 1 . . 43 7 11 . 37 Level 3 33 | . . . . . . . . . 34 4 . . . . . . 21 . . . . 73 39 75 56 39 44 100 52 Level 4 18 | . . . . . . . . . 25 77 . . . . . . . . . . . 25 27 24 . 13 44 . 9 Level 5 3 | . . . . . . . . . . 17 . . . . . . . . . . . . 33 . . . . . . High Security . | . . . . . . . . . 6 . . . . . . . . . . . . . . . . . . . . Max Security . | . . . . . . . . . . . . . . . . . . . . . . . . . . . . . . Peak Influence 1879 | . 218 94 . 68 403 612 305 99 1684 1785 . . . . 260 85 886 . . . . 1476 1879 1334 721 1166 1345 1091 1165 Initial 1100 | . . 64 . . 18 116 270 99 34 1100 . . . . 217 70 70 . . . . 616 702 1033 526 241 606 751 605 Average 720 | . 152 31 . 24 224 350 279 75 922 1378 . . . . 186 78 493 . . . . 975 1285 1011 683 640 1021 955 790 Influence Increases 17835 | . 469 55 . 78 734 902 45 . 2202 945 290 45 . 525 213 30 1070 145 354 456 1305 1486 1629 657 195 1315 1125 495 1070 Destroy 0b10 Robot/C 11020 | . 300 40 . 60 480 540 20 . 1240 560 240 40 . 460 120 . 560 120 320 380 1200 780 1080 300 80 400 840 320 540 Destroy 0b10 Robot/NC 540 | . 40 5 . . 35 15 . . 90 25 . 5 . . 25 . 40 5 . 10 45 35 35 10 . 35 35 20 30 Destroy Leader 1800 | . 68 10 . 10 124 162 10 . 288 158 50 . . 40 38 . 150 20 30 . 60 168 76 20 . 88 144 24 62 Allied During Kill 1488 | . . . . 8 . 25 . . 366 5 . . . 25 . . . . 4 6 . 14 311 287 80 295 14 . 48 Successful Hack 673 | . 31 . . . 64 23 . . 49 127 . . . . 26 . 10 . . . . 75 21 4 . 10 33 50 150 Select Force Hacks 150 | . . . . . . . . . . . . . . . . . . . . . . . . . . 150 . . . Disable Machine 600 | . . . . . 30 30 . . . 45 . . . . . . 195 . . . . 75 . . 15 30 30 45 105 Destroy Structure 684 | . . . . . 1 2 . . 109 10 . . . . 4 . 10 . . . . 194 106 36 20 112 14 6 60 Partial Spotted 315 | . 15 . . . . 45 15 . 60 15 . . . . . 30 60 . . . . 15 . . . 30 15 15 . Lose Combat Pursuer 465 | . 15 . . . . 60 . . . . . . . . . . 45 . . 60 . 30 . . . 165 . 15 75 Miscellaneous 100 | . . . . . . . . . . . . . . . . . . . . . . 100 . . . . . . . Influence Decreases 16946 | . 302 222 . 30 506 582 356 236 567 1128 789 333 990 180 358 130 292 426 264 847 622 1031 1216 1188 820 850 944 756 981 Entered New Map 10039 | . . 103 . . 30 160 326 186 15 860 659 243 990 . 128 130 30 326 114 687 296 363 732 814 790 450 550 586 471 Time Decay 4777 | . 292 119 . 30 286 222 30 50 302 238 130 90 . 160 80 . 262 100 150 100 326 318 294 374 30 120 334 150 190 Lost Part 10 | . 10 . . . . . . . . . . . . . . . . . . . . . . . . . . . . Lost Ally 920 | . . . . . 40 50 . . 250 30 . . . 20 . . . . . 60 . 50 40 . . 130 60 20 170 Purge Threat 1200 | . . . . . 150 150 . . . . . . . . 150 . . . . . . 300 150 . . 150 . . 150 Squads Dispatched 74 | . 2 1 . . 7 4 . . 16 6 . . . . 1 . 4 . . . 1 8 2 . . 8 5 1 8 Investigation 25 | . . 1 . . 2 1 . . 4 3 . . . . . . . . . . 1 3 . . . 6 3 . 1 Extermination 11 | . . . . . . . . . 2 2 . . . . . . 2 . . . . 1 . . . 1 1 1 1 Reinforcement 19 | . 2 . . . 2 1 . . 7 . . . . . . . 1 . . . . 1 . . . 1 1 . 3 Assault 7 | . . . . . . 2 . . . . . . . . . . . . . . . 1 2 . . . . . 2 Garrison 11 | . . . . . 3 . . . 3 1 . . . . 1 . 1 . . . . 2 . . . . . . . Intercept 1 | . . . . . . . . . . . . . . . . . . . . . . . . . . . . . 1 Searches Triggered . | . . . . . . . . . . . . . . . . . . . . . . . . . . . . . . Construction Impeded 2 | . . . . . . . . . 1 . . . . . . . . . . . . . . . . . . . 1 Haulers Reinforced 2 | . . . . . . . . . . . . . . . . . 1 . . . . . . . . . 1 . . Active Scanning Responses . | . . . . . . . . . . . . . . . . . . . . . . . . . . . . . . Cargo Convoy Interrupts . | . . . . . . . . . . . . . . . . . . . . . . . . . . . . . . Stealth | -11 -10 -10 -10 -9 -8 -8 -7 -7 -7 -6 -6 -6 -6 -5 -5 -5 -5 -5 -5 -5 -4 -4 -4 -4 -4 -4 -3 -3 -3 --------- Run | Yrd Mat Min Exi Min Mat Sto Fac Was Fac Fac Low Low Zio Pro Fac Was Fac Upp Upp War Pro Fac Ext Cet Arc Hub Res Qua Sec Distress Signals 41 | . 2 . . . 4 3 . . 3 1 . . . 1 . . 3 . . . . 7 2 2 . 2 9 . 2 Communications Jammed . | . . . . . . . . . . . . . . . . . . . . . . . . . . . . . . Distress Signals . | . . . . . . . . . . . . . . . . . . . . . . . . . . . . . . Times Spotted 605 | . 26 2 . 23 29 35 1 . 48 29 9 6 . 19 7 2 28 7 12 24 40 52 36 17 1 35 47 20 50 Peak Tracking Total 20 | . 5 2 . 20 4 8 1 . 5 5 4 5 . 9 2 2 9 4 2 15 9 7 8 5 1 16 6 4 9 Tactical Retreats 16 | . 1 . . 1 . 1 . . . . . . . . . . 2 . . 3 . 2 . . . 2 . 1 3 Traps | -11 -10 -10 -10 -9 -8 -8 -7 -7 -7 -6 -6 -6 -6 -5 -5 -5 -5 -5 -5 -5 -4 -4 -4 -4 -4 -4 -3 -3 -3 ------- Run | Yrd Mat Min Exi Min Mat Sto Fac Was Fac Fac Low Low Zio Pro Fac Was Fac Upp Upp War Pro Fac Ext Cet Arc Hub Res Qua Sec Traps Triggered 22 | . 2 . . . . 1 3 . 2 . . . . . 1 . 6 . . . . 2 1 . . 1 3 . . Indirectly 1 | . . . . . . . . . . . . . . . . . 1 . . . . . . . . . . . . Trap Hack Attempts . | . . . . . . . . . . . . . . . . . . . . . . . . . . . . . . Triggered . | . . . . . . . . . . . . . . . . . . . . . . . . . . . . . . Disarmed . | . . . . . . . . . . . . . . . . . . . . . . . . . . . . . . Reprogrammed . | . . . . . . . . . . . . . . . . . . . . . . . . . . . . . . Reused . | . . . . . . . . . . . . . . . . . . . . . . . . . . . . . . Traps Extracted . | . . . . . . . . . . . . . . . . . . . . . . . . . . . . . . Installed . | . . . . . . . . . . . . . . . . . . . . . . . . . . . . . . Triggered . | . . . . . . . . . . . . . . . . . . . . . . . . . . . . . . Machines | -11 -10 -10 -10 -9 -8 -8 -7 -7 -7 -6 -6 -6 -6 -5 -5 -5 -5 -5 -5 -5 -4 -4 -4 -4 -4 -4 -3 -3 -3 ---------- Run | Yrd Mat Min Exi Min Mat Sto Fac Was Fac Fac Low Low Zio Pro Fac Was Fac Upp Upp War Pro Fac Ext Cet Arc Hub Res Qua Sec Machines Disabled 45 | . . . . . 2 2 . . . 3 . . . . . . 13 1 1 . 2 5 . . 1 2 2 3 8 Max in Single Turn 4 | . . . . . 1 1 . . . 1 . . . . . . 4 1 1 . 1 2 . . 1 . 1 1 2 Garrison Access 10 | . . . . . . 1 . . 2 2 . . . . 1 . . . . . . 2 . . . . 2 . . Network Hub 3 | . . . . . . . . . . . . . . . . . . . . . . . . . . 3 . . . Machines Repaired . | . . . . . . . . . . . . . . . . . . . . . . . . . . . . . . Machines Dismantled . | . . . . . . . . . . . . . . . . . . . . . . . . . . . . . . Machines Sabotaged 3 | . . . . . . . . . . . . . . . . . . . . . . . . . . 3 . . . Overloaded Fab Kills . | . . . . . . . . . . . . . . . . . . . . . . . . . . . . . . Hacking | -11 -10 -10 -10 -9 -8 -8 -7 -7 -7 -6 -6 -6 -6 -5 -5 -5 -5 -5 -5 -5 -4 -4 -4 -4 -4 -4 -3 -3 -3 --------- Run | Yrd Mat Min Exi Min Mat Sto Fac Was Fac Fac Low Low Zio Pro Fac Was Fac Upp Upp War Pro Fac Ext Cet Arc Hub Res Qua Sec Machines Accessed 165 | . 6 1 1 . 14 11 . . 20 20 . 2 . . 8 . 4 1 . 7 3 26 11 2 . 6 10 4 8 Terminals 108 | . 4 1 . . 12 10 . . 9 11 . . . . 6 . 2 . . . 1 16 11 2 . 6 5 4 8 Fabricators 17 | . . . . . . . . . 5 5 . . . . 1 . . . . . 1 5 . . . . . . . Repair Stations . | . . . . . . . . . . . . . . . . . . . . . . . . . . . . . . Recycling Units 3 | . 2 . . . . . . . . . . . . . . . . . . . 1 . . . . . . . . Scanalyzers 8 | . . . . . 1 . . . 2 2 . . . . . . . . . . . 2 . . . . 1 . . Garrison Access 18 | . . . . . 1 1 . . 4 2 . . . . 1 . 2 . . . . 3 . . . . 4 . . Total Hacks 559 | . 22 5 23 . 44 38 . . 51 41 . 5 . . 24 . 17 1 . 8 14 72 33 11 . 23 37 28 62 Successful 302 | . 16 1 23 . 24 23 . . 26 23 . 5 . . 17 . 6 1 . 8 7 44 19 4 . 13 7 9 26 Failed 256 | . 6 4 . . 19 15 . . 25 18 . . . . 7 . 11 . . . 7 28 14 7 . 10 30 19 36 Catastrophic 48 | . . 1 . . 6 2 . . 7 6 . . . . 1 . 1 . . . . 3 2 1 . . 9 1 8 Database Lockouts 1 | . . . . . 1 . . . . . . . . . . . . . . . . . . . . . . . . Manual 352 | . 18 5 . . 33 23 . . 37 23 . . . . 16 . 18 . . . 4 52 20 1 . 19 20 18 45 Terminals 419 | . 17 5 . . 39 36 . . 31 26 . . . . 20 . 9 . . . 1 54 33 11 . 23 24 28 62 Fabricators 32 | . . . . . . . . . 8 8 . . . . 2 . . . . . 7 7 . . . . . . . Repair Stations . | . . . . . . . . . . . . . . . . . . . . . . . . . . . . . . Recycling Units 11 | . 5 . . . . . . . . . . . . . . . . . . . 6 . . . . . . . . Scanalyzers 10 | . . . . . 2 . . . 2 3 . . . . . . . . . . . 2 . . . . 1 . . Garrison Access 50 | . . . . . 3 2 . . 10 4 . . . . 2 . 8 . . . . 9 . . . . 12 . . Terminal Hacks 105 | . . . 23 . 6 10 . . 4 5 . 5 . . 4 . 1 1 . 8 1 12 8 4 . 2 . 3 8 Record 40 | . . . 23 . . 1 . . . . . 4 . . . . . . . 7 . . . 4 . . . 1 . Part Schematic 1 | . . . . . . . . . 1 . . . . . . . . . . . . . . . . . . . . Robot Schematic 1 | . . . . . . . . . 1 . . . . . . . . . . . . . . . . . . . . Robot Analysis 2 | . . . . . . . . . . . . . . . . . . . . . . 1 . . . . . . 1 Prototype ID Bank 2 | . . . . . 1 . . . . . . . . . . . . . . . . 1 . . . . . . . Open Door 13 | . . . . . . 4 . . . . . 1 . . . . . 1 . 1 1 1 4 . . . . . . Level Access Points 1 | . . . . . 1 . . . . . . . . . . . . . . . . . . . . . . . . Branch Access Points 7 | . . . . . . 1 . . . 1 . . . . 1 . 1 . . . . 1 . . . . . . 2 Emergency Access Points 1 | . . . . . 1 . . . . . . . . . . . . . . . . . . . . . . . . Machine Index 1 | . . . . . . . . . . 1 . . . . . . . . . . . . . . . . . . . Scanalyzer Index 1 | . . . . . . . . . . . . . . . . . . . . . . 1 . . . . . . . Alert Level 12 | . . . . . 1 2 . . 1 1 . . . . 1 . . . . . . 2 1 . . . . . 3 Unreport Threat 9 | . . . . . 1 1 . . . . . . . . 1 . . . . . . 3 1 . . 1 . . 1 Locate Traps 1 | . . . . . . . . . . . . . . . . . . . . . . . 1 . . . . . . Maintenance Status 1 | . . . . . . . . . . . . . . . . . . . . . . . 1 . . . . . . Hauler Manifests 8 | . . . . . 1 1 . . . 1 . . . . 1 . . . . . . 1 . . . 1 . 1 1 Registered Components 2 | . . . . . . . . . 1 . . . . . . . . . . . . 1 . . . . . . . Registered Prototypes 2 | . . . . . . . . . . 1 . . . . . . . . . . . . . . . . . 1 . Fabricator Hacks 6 | . . . . . . . . . 1 1 . . . . 1 . . . . . 2 1 . . . . . . . Network Status 5 | . . . . . . . . . 1 1 . . . . 1 . . . . . 1 1 . . . . . . . Load Schematic 1 | . . . . . . . . . . . . . . . . . . . . . 1 . . . . . . . . Repair Station Hacks . | . . . . . . . . . . . . . . . . . . . . . . . . . . . . . . Recycling Unit Hacks 3 | . 2 . . . . . . . . . . . . . . . . . . . 1 . . . . . . . . Report Inventory 1 | . . . . . . . . . . . . . . . . . . . . . 1 . . . . . . . . Retrieve Components 2 | . 2 . . . . . . . . . . . . . . . . . . . . . . . . . . . . Scanalyzer 7 | . . . . . 1 . . . 2 1 . . . . . . . . . . . 2 . . . . 1 . . Retrieve Study 7 | . . . . . 1 . . . 2 1 . . . . . . . . . . . 2 . . . . 1 . . Garrison Access Hacks 10 | . . . . . . 1 . . 2 2 . . . . 1 . . . . . . 2 . . . . 2 . . Seal Access 10 | . . . . . . 1 . . 2 2 . . . . 1 . . . . . . 2 . . . . 2 . . Unauthorized Hacks 169 | . 14 1 . . 17 12 . . 17 13 . . . . 11 . 5 . . . 2 27 11 . . 11 4 6 18 Terminals 141 | . 12 1 . . 15 12 . . 13 9 . . . . 9 . 3 . . . . 17 11 . . 11 4 6 18 Track 16 | . 2 1 . . 3 3 . . 1 . . . . . 1 . 1 . . . . 1 1 . . . . . 2 Assimilate 12 | . . . . . . 1 . . 3 1 . . . . . . . . . . . 5 1 . . . . . 1 Botnet 41 | . 3 . . . 4 3 . . 3 3 . . . . 4 . 1 . . . . 3 4 . . 4 1 3 5 Disrupt 6 | . 2 . . . 1 . . . . . . . . . . . . . . . . 2 . . . . . . 1 Operators 6 | . 1 . . . . 1 . . . . . . . . 1 . . . . . . 1 . . . . . . 2 Skim 55 | . 4 . . . 7 4 . . 6 5 . . . . 3 . 1 . . . . 5 5 . . 2 3 3 7 Sabotage 5 | . . . . . . . . . . . . . . . . . . . . . . . . . . 5 . . . Fabricators 11 | . . . . . . . . . 1 3 . . . . 1 . . . . . 1 5 . . . . . . . Fabnet 11 | . . . . . . . . . 1 3 . . . . 1 . . . . . 1 5 . . . . . . . Repair Stations . | . . . . . . . . . . . . . . . . . . . . . . . . . . . . . . Recycling Units 3 | . 2 . . . . . . . . . . . . . . . . . . . 1 . . . . . . . . Reject 3 | . 2 . . . . . . . . . . . . . . . . . . . 1 . . . . . . . . Scanalyzers . | . . . . . . . . . . . . . . . . . . . . . . . . . . . . . . Garrison Access 14 | . . . . . 2 . . . 3 1 . . . . 1 . 2 . . . . 5 . . . . . . . Broadcast 5 | . . . . . 1 . . . 1 . . . . . 1 . 1 . . . . 1 . . . . . . . Redirect 1 | . . . . . . . . . . . . . . . . . . . . . . 1 . . . . . . . Reprogram 1 | . . . . . . . . . . . . . . . . . . . . . . 1 . . . . . . . Intercept 1 | . . . . . . . . . . . . . . . . . . . . . . 1 . . . . . . . Watchers 6 | . . . . . 1 . . . 2 1 . . . . . . 1 . . . . 1 . . . . . . . Data Cores Recovered 4 | . . . . . . . . . . 1 . . . . 1 . . . . . . . 1 . . . 1 . . Used 1 | . . . . . . . . . . 1 . . . . . . . . . . . . . . . . . . . Hacking Detections 121 | . 5 1 . . 13 11 . . 16 18 . . . . 5 . 3 . . . 2 17 9 1 . 4 7 2 7 Full Trace Events 15 | . . 1 . . 2 1 . . 4 3 . . . . . . . . . . 1 . . . . 1 2 . . Feedback Events 5 | . . . . . . . . . 1 2 . . . . . . . . . . 1 . . . . 1 . . . Corruption 5 | . . . . . . . . . 1 2 . . . . . . . . . . 1 . . . . 1 . . . Feedback Blocked . | . . . . . . . . . . . . . . . . . . . . . . . . . . . . . . Robot Schematics Acquired 4 | . . . . . . . . . 1 . . . 3 . . . . . . . . . . . . . . . . Robots Built . | . . . . . . . . . . . . . . . . . . . . . . . . . . . . . . Authchips . | . . . . . . . . . . . . . . . . . . . . . . . . . . . . . . Time . | . . . . . . . . . . . . . . . . . . . . . . . . . . . . . . Total Robot Build Rating . | . . . . . . . . . . . . . . . . . . . . . . . . . . . . . . Part Schematics Acquired 15 | . . . . . . . . . 1 . . . 14 . . . . . . . . . . . . . . . . Parts Built . | . . . . . . . . . . . . . . . . . . . . . . . . . . . . . . Authchips . | . . . . . . . . . . . . . . . . . . . . . . . . . . . . . . Time . | . . . . . . . . . . . . . . . . . . . . . . . . . . . . . . Total Part Build Rating . | . . . . . . . . . . . . . . . . . . . . . . . . . . . . . . Part Studies Acquired 7 | . . . . . 1 . . . 2 1 . . . . . . . . . . . 2 . . . . 1 . . Parts Repaired . | . . . . . . . . . . . . . . . . . . . . . . . . . . . . . . Time . | . . . . . . . . . . . . . . . . . . . . . . . . . . . . . . Parts Recycled . | . . . . . . . . . . . . . . . . . . . . . . . . . . . . . . Recycled Matter . | . . . . . . . . . . . . . . . . . . . . . . . . . . . . . . Retrieved Matter . | . . . . . . . . . . . . . . . . . . . . . . . . . . . . . . Retrieved Components 10 | . 10 . . . . . . . . . . . . . . . . . . . . . . . . . . . . Parts Scanalyzed . | . . . . . . . . . . . . . . . . . . . . . . . . . . . . . . Part Schematics Acquired . | . . . . . . . . . . . . . . . . . . . . . . . . . . . . . . Parts Damaged . | . . . . . . . . . . . . . . . . . . . . . . . . . . . . . . Bothacking | -11 -10 -10 -10 -9 -8 -8 -7 -7 -7 -6 -6 -6 -6 -5 -5 -5 -5 -5 -5 -5 -4 -4 -4 -4 -4 -4 -3 -3 -3 ------------ Run | Yrd Mat Min Exi Min Mat Sto Fac Was Fac Fac Low Low Zio Pro Fac Was Fac Upp Upp War Pro Fac Ext Cet Arc Hub Res Qua Sec Used RIF Installer . | . . . . . . . . . . . . . . . . . . . . . . . . . . . . . . Robots Hacked 39 | . . . . . . . . . . 1 . . . 4 2 . 1 . 1 4 . 1 2 . . 1 10 1 11 Non-combat . | . . . . . . . . . . . . . . . . . . . . . . . . . . . . . . Combat 39 | . . . . . . . . . . 1 . . . 4 2 . 1 . 1 4 . 1 2 . . 1 10 1 11 Robot Hacks Applied . | . . . . . . . . . . . . . . . . . . . . . . . . . . . . . . Relay Couplers Released . | . . . . . . . . . . . . . . . . . . . . . . . . . . . . . . Fabnet Peak Effective % 15 | . . . . . . . . . . 3 3 3 3 10 10 10 10 10 10 10 6 6 6 6 6 6 15 15 15 Autooverrided 39 | . . . . . . . . . . 1 . . . 4 2 . 1 . 1 4 . 1 2 . . 1 10 1 11 Robots Rewired . | . . . . . . . . . . . . . . . . . . . . . . . . . . . . . . Allies Hacked 1 | . . . . . . . . . . . . . . . . . . . . . . . . . . . . . 1 Hacks Repelled . | . . . . . . . . . . . . . . . . . . . . . . . . . . . . . . Allies | -11 -10 -10 -10 -9 -8 -8 -7 -7 -7 -6 -6 -6 -6 -5 -5 -5 -5 -5 -5 -5 -4 -4 -4 -4 -4 -4 -3 -3 -3 -------- Run | Yrd Mat Min Exi Min Mat Sto Fac Was Fac Fac Low Low Zio Pro Fac Was Fac Upp Upp War Pro Fac Ext Cet Arc Hub Res Qua Sec Total Allies 89 | . . 3 . 2 . 3 . 20 3 2 . . . 4 2 . 1 . 1 4 . 6 8 5 . 1 10 1 13 Largest Group 20 | . . 3 3 3 2 3 . 20 20 2 . . . 1 2 . 1 . 1 2 . 4 5 10 10 10 2 1 3 Highest-Rated Group 796 | . . 40 40 45 45 72 . 536 536 38 . . . 64 58 . 41 . 29 91 . 130 316 796 796 690 197 82 141 Highest-Rated Ally 159 | . . 16 16 31 31 31 . 35 35 27 . . . 64 29 . 41 . 29 49 . 47 159 153 153 96 116 82 82 Total Orders 3 | . . . . . . . . . . . . . . . . . . . . . . 2 . . . . . . 1 STAY 2 | . . . . . . . . . . . . . . . . . . . . . . 1 . . . . . . 1 FOLLOW 1 | . . . . . . . . . . . . . . . . . . . . . . 1 . . . . . . . Ally Attacks 430 | . . . . 8 4 20 . . 158 1 . . . 17 1 . . . 1 7 . 9 45 31 1 69 22 1 35 Total Damage 10663 | . . . . 81 42 337 . . 3459 13 . . . 277 19 . . . . 959 . 273 879 890 23 2027 445 11 928 Kills 74 | . . . . . . 5 . . 35 . . . . 3 . . . . . 2 . 1 8 4 . 9 2 . 5 Allies Corrupted 3 | . . . . . . . . . . . . . . . . . . . . . . . . . . 3 . . . Allies Melted 1 | . . . . . . . . . . 1 . . . . . . . . . . . . . . . . . . . Intel | -11 -10 -10 -10 -9 -8 -8 -7 -7 -7 -6 -6 -6 -6 -5 -5 -5 -5 -5 -5 -5 -4 -4 -4 -4 -4 -4 -3 -3 -3 ------- Run | Yrd Mat Min Exi Min Mat Sto Fac Was Fac Fac Low Low Zio Pro Fac Was Fac Upp Upp War Pro Fac Ext Cet Arc Hub Res Qua Sec Active Infowar (turns) 11237 | . 665 388 234 127 635 466 74 113 717 506 270 199 133 335 173 9 562 211 312 386 726 716 642 867 76 253 742 303 397 Structural 11237 | . 665 388 234 127 635 466 74 113 717 506 270 199 133 335 173 9 562 211 312 386 726 716 642 867 76 253 742 303 397 ECM 3 | . . . . . . . . . . . . . . . . . . . . . . . . . . . 1 . 2 Robot Analysis Total 2 | . . . . . . . . . . . . . . . . . . . . . . 1 . . . . . . 1 Derelict Logs Recovered 18 | . . 3 . 1 . . . . . . 1 1 3 3 . . . 2 2 . 2 . . . . . . . . Drone Launches . | . . . . . . . . . . . . . . . . . . . . . . . . . . . . . . Drone Recoveries . | . . . . . . . . . . . . . . . . . . . . . . . . . . . . . . Exploration | -11 -10 -10 -10 -9 -8 -8 -7 -7 -7 -6 -6 -6 -6 -5 -5 -5 -5 -5 -5 -5 -4 -4 -4 -4 -4 -4 -3 -3 -3 ------------- Run | Yrd Mat Min Exi Min Mat Sto Fac Was Fac Fac Low Low Zio Pro Fac Was Fac Upp Upp War Pro Fac Ext Cet Arc Hub Res Qua Sec Turns Passed 11282 | 27 673 388 234 127 635 466 74 113 717 508 270 199 136 335 173 9 567 211 312 386 726 716 642 867 76 253 742 303 397 Spaces Moved 26078 | 47 1070 756 498 266 1112 949 134 88 2117 1495 908 704 625 1116 630 62 1502 750 904 899 1630 1865 1461 222 89 572 2012 779 816 Core 109 | 47 62 . . . . . . . . . . . . . . . . . . . . . . . . . . . . Treads . | . . . . . . . . . . . . . . . . . . . . . . . . . . . . . . Legs . | . . . . . . . . . . . . . . . . . . . . . . . . . . . . . . Wheels . | . . . . . . . . . . . . . . . . . . . . . . . . . . . . . . Hover . | . . . . . . . . . . . . . . . . . . . . . . . . . . . . . . Flight 25969 | . 1008 756 498 266 1112 949 134 88 2117 1495 908 704 625 1116 630 62 1502 750 904 899 1630 1865 1461 222 89 572 2012 779 816 Fastest Speed 6 | 50 37 37 37 37 29 26 26 21 21 6 21 21 21 21 21 12 21 21 6 21 21 11 24 24 24 24 15 14 12 Average Speed 24 | 50 38 37 37 37 31 26 26 25 21 20 21 21 21 21 21 12 21 21 20 21 21 24 24 24 24 24 23 22 22 Slowest Speed 97 | 50 50 37 37 37 37 29 26 26 21 21 21 21 21 21 21 12 92 21 21 21 21 25 24 24 24 24 97 23 23 Overloaded Moves 202 | . . . . . . . . . . 14 . . . . . 62 . . 5 . . 57 . . . . 12 19 33 Propulsion Burnouts . | . . . . . . . . . . . . . . . . . . . . . . . . . . . . . . Robots Hopped 220 | . 15 19 . 5 15 18 . . 31 16 . 4 . . 4 . 8 2 . 1 5 17 9 . 1 6 10 7 27 Potential Cave-ins 3 | . . . . . . . . . . . . . . . . . . . . . . 3 . . . . . . . Cave-ins Triggered . | . . . . . . . . . . . . . . . . . . . . . . . . . . . . . . Exploration Rate (%) 70 | 4 97 98 89 75 94 92 4 72 73 46 94 74 84 98 23 76 40 93 72 88 93 56 97 70 81 42 66 76 39 Regions Visited 29 Branch Regions 18 Pre-discovered Areas 12 | . . 1 1 . 1 1 . . . 1 . 1 2 1 . . . . . . . 1 2 . . . . . . Known Exits Taken 9 | . . . 1 . . 1 . . . 1 1 . . 1 . . 1 . . . 1 1 . . . 1 . . . Unknown Exits Taken 16 | 1 1 1 . 1 1 . . . 1 . . 1 1 . . . . 1 1 1 . . 1 1 1 . 1 1 . Scrap Searched 23 | . . 1 . 1 . . . . . . 3 4 4 1 . . . 4 3 . 2 . . . . . . . . Spaces Dug . | . . . . . . . . . . . . . . . . . . . . . . . . . . . . . . Terrain Destroyed 399 | . . . . . . . . . . 4 10 3 . 7 1 . 7 9 14 1 27 107 90 15 10 25 9 6 54 Melee . | . . . . . . . . . . . . . . . . . . . . . . . . . . . . . . Projectile 263 | . . . . . . . . . . 2 10 2 . 5 . . 6 9 12 1 25 33 90 15 10 25 9 4 5 AOE 122 | . . . . . . . . . . . . . . . . . . . . . . 74 . . . . . . 48 Terrain Rammed . | . . . . . . . . . . . . . . . . . . . . . . . . . . . . . . Walls Destroyed . | . . . . . . . . . . . . . . . . . . . . . . . . . . . . . . Machines Disabled . | . . . . . . . . . . . . . . . . . . . . . . . . . . . . . . Actions | -11 -10 -10 -10 -9 -8 -8 -7 -7 -7 -6 -6 -6 -6 -5 -5 -5 -5 -5 -5 -5 -4 -4 -4 -4 -4 -4 -3 -3 -3 --------- Run | Yrd Mat Min Exi Min Mat Sto Fac Was Fac Fac Low Low Zio Pro Fac Was Fac Upp Upp War Pro Fac Ext Cet Arc Hub Res Qua Sec Total 29252 | 48 1186 831 547 283 1262 1066 169 176 2284 1597 948 726 628 1162 643 62 1661 776 974 1042 1837 2011 1630 1007 132 633 2167 839 925 Wait 1587 | . 22 82 50 15 11 33 1 81 75 43 9 9 . 9 3 . 15 4 31 99 63 19 73 759 36 4 11 8 22 Move 25631 | 46 1040 723 497 255 1081 913 134 87 2060 1463 907 696 624 1115 622 61 1484 745 903 896 1620 1830 1442 221 86 559 1989 764 768 Hop 197 | . 14 13 . 5 15 17 . . 25 15 . 3 . . 4 . 8 2 . 1 4 17 9 . 1 6 10 7 21 Pick Up 9 | . . . . . 2 1 . 1 1 1 . . . . . . . . . 1 . . . . . . . 1 1 Fast Attach 98 | 2 7 . . . 9 7 1 1 4 10 . . 2 . . 1 7 1 . 4 7 8 2 4 . . 6 6 9 Attach 2 | . . . . . . . . . . . . . . . . . . . . . . . . . . . . . 2 Detach 2 | . . . . . . . . . . . . . . . . . . . . . . . . . . . . . 2 Swap 66 | . 1 . . 2 7 2 . . 10 1 . . . 1 1 . 4 . . 1 4 8 3 . 1 3 14 1 2 Drop 101 | . 1 . . 2 13 8 . . 8 7 . . 2 . 1 . 9 1 . 4 9 9 1 4 . 1 9 4 8 Fire 881 | . 77 8 . 4 78 53 3 . 51 41 19 12 . 26 12 . 42 13 28 28 93 54 60 15 5 26 51 34 48 Melee . | . . . . . . . . . . . . . . . . . . . . . . . . . . . . . . Ram . | . . . . . . . . . . . . . . . . . . . . . . . . . . . . . . Kick . | . . . . . . . . . . . . . . . . . . . . . . . . . . . . . . Crush . | . . . . . . . . . . . . . . . . . . . . . . . . . . . . . . Escape Stasis 211 | . . . . . . 15 30 . 13 . . . . . . . 61 . . . . 30 . . . 15 47 . . Rewire . | . . . . . . . . . . . . . . . . . . . . . . . . . . . . . . Trap . | . . . . . . . . . . . . . . . . . . . . . . . . . . . . . . Miscellaneous 467 | . 24 5 . . 46 17 . 6 37 16 13 6 . 11 . . 31 10 12 8 37 36 40 4 3 19 30 14 42 Route ------- -11/Scrapyard -10/Materials (discovered 5 exits: [*Mat x3] / *Min / [*Sub]) -10/Mines (discovered 3 exits: [*Mat x2] / *Exi) -10/Exiles (discovered 2 exits: *Min x2) -9/Mines (discovered 2 exits: *Mat x2) -8/Materials (discovered 5 exits: *Fac x3 / *Sto x2) -8/Storage (discovered 2 exits: *Fac / Rec) -7/Factory (discovered 2 exits: Low x2) -7/Waste -7/Factory (discovered 3 exits: *Fac x3) -6/Factory (discovered 6 exits: *Fac x4 / *Low x2) -6/Lower Caves -6/Lower Caves (discovered 2 exits: *Fac / [*Zio]) -6/Zion -5/Proximity Caves -5/Factory (discovered 3 exits: *Fac / Upp x2) -5/Waste -5/Factory (discovered 3 exits: *Fac / *Upp x2) -5/Upper Caves -5/Upper Caves (discovered 2 exits: *Fac / *War) -5/Warlord -4/Proximity Caves -4/Factory (discovered 8 exits: *Res x4 / *Upp x2 / *Ext x2) -4/Extension (discovered 2 exits: *Res / *Cet) -4/Cetus (discovered 2 exits: *Res / *Arc) -4/Archives (discovered 3 exits: *Res / *Hub x2) -4/Hub_04(d) (discovered 4 exits: *Res x4) -3/Research (discovered 4 exits: *Res x2 / *Arm / *Qua) -3/Quarantine (discovered 3 exits: *Res / *Sec / [*Frg]) -3/Section 7 History --------- Turn | Location | Event 4 | -11/Scrapyard | Discovered new exit (range 15) 14 | -11/Scrapyard | Upgraded with Weapon slot (x1) 28 | -11/Scrapyard | Entered Materials 170 | -10/Materials | Discovered new exit (range 16) 197 | -10/Materials | Discovered new exit (range 15) 302 | -10/Materials | Build established: Mutant 344 | -10/Materials | Reached level 2 347 | -10/Materials | Upgraded with Propulsion slot (x1) 347 | -10/Materials | Upgraded with Utility slot (x1) 347 | -10/Materials | Upgraded with Weapon slot (x1) 456 | -10/Materials | Discovered new exit (range 15) 459 | -10/Materials | Discovered new exit (range 16) 528 | -10/Materials | Derelicts attacked the area 621 | -10/Materials | Discovered new exit (range 15) 701 | -10/Materials | Entered Mines 714 | -10/Mines | Learned Materials emergency access door positions 719 | -10/Mines | Build established: Scavenger-Gunner 773 | -10/Mines | Discovered new exit (range 14) 786 | -10/Mines | Assisted by bots powering up and referring to "LRC-V3" 793 | -10/Mines | Discovered new exit (range 13) 838 | -10/Mines | Found a Scrap Suit stashed away for nefarious purposes 845 | -10/Mines | Learned location of Zion (-6) 848 | -10/Mines | A weapon hastily lodged in a ceiling crevice suddenly fell to the ground 862 | -10/Mines | Found a damaged Exp. Sensor Array with a note attached 869 | -10/Mines | Deemed a non-threat by the Exiles lab entrance 869 | -10/Mines | Discovered new exit (range 6) 875 | -10/Mines | Received a Rocket Launcher from a helpful Derelict 1089 | -10/Mines | Entered Exiles 1089 | -10/Exiles | Accompanied by 3 allies 1090 | -10/Exiles | Identified exit to Mines 1099 | -10/Exiles | Met 8R-AWN 1105 | -10/Exiles | Met EX-HEX 1119 | -10/Exiles | Met EX-DEC 1174 | -10/Exiles | Visited The Gauntlet 1226 | -10/Exiles | Met EX-BIN 1323 | -10/Exiles | Entered Mines 1323 | -9/Mines | Accompanied by 3 allies 1324 | -9/Mines | Assembled infested the area 1325 | -9/Mines | Reached level 3 1329 | -9/Mines | Assisted by a Guerilla fighting off Assembled 1350 | -9/Mines | Learned Materials terminal intel 1393 | -9/Mines | Discovered new exit (range 10) 1424 | -9/Mines | Discovered new exit (range 5) 1450 | -9/Mines | Entered Materials 1450 | -8/Materials | Accompanied by 2 allies 1452 | -8/Materials | Loaded intel: 12 terminal locations 1452 | -8/Materials | Reached level 4 1455 | -8/Materials | Led the pair of lost Derelicts to an unsafe place 1461 | -8/Materials | Upgraded with Propulsion slot (x1) 1461 | -8/Materials | Upgraded with Utility slot (x1) 1461 | -8/Materials | Upgraded with Weapon slot (x1) 1466 | -8/Materials | Garrison activated, responded to threat 1508 | -8/Materials | Core integrity fell below 50% 1590 | -8/Materials | Reached level 5 1642 | -8/Materials | Discovered new exit (range 13) 1700 | -8/Materials | Central database locked down 1794 | -8/Materials | Discovered new exit (range 15) 1808 | -8/Materials | Discovered new exit (range 14) 1821 | -8/Materials | Met 7R-MNS 1864 | -8/Materials | Reached level 6 1874 | -8/Materials | Identified exit to Factory 1876 | -8/Materials | Upgraded with Utility slot (x1) 1938 | -8/Materials | Build established: Scavenger-Sprinter 1984 | -8/Materials | Learned location of Lower Caves (-6) 2022 | -8/Materials | Learned Storage trap positions 2051 | -8/Materials | Learned Storage trap positions 2072 | -8/Materials | Learned 2 Storage zone layouts 2085 | -8/Materials | Entered Storage 2087 | -8/Storage | Loaded intel: 10 trap records 2087 | -8/Storage | Reached level 7 2090 | -8/Storage | Met a pair of Derelict thieves 2103 | -8/Storage | Identified exit to Recycling 2130 | -8/Storage | Found Prototype Processor 2130 | -8/Storage | Identified Exp. Targeting Computer 2140 | -8/Storage | Learned location of Armory (-3) 2182 | -8/Storage | Upgraded with Propulsion slot (x1) 2259 | -8/Storage | Reached level 8 2365 | -8/Storage | Destroyed 7 combat bots 2366 | -8/Storage | Reached level 9 2458 | -8/Storage | Destroyed 7 combat bots 2524 | -8/Storage | Discovered exit to Factory (range 5) 2551 | -8/Storage | Entered Factory 2552 | -7/Factory | Identified exit to Lower Caves 2553 | -7/Factory | Reached level 10 2598 | -7/Factory | Build established: Sprinter 2620 | -7/Factory | Upgraded with Utility slot (x1) 2625 | -7/Factory | Sucked down chute 2625 | -7/Factory | Entered Waste 2626 | -7/Waste | Joined by Warlord forces that had cleared the area 2627 | -7/Waste | Reached level 11 2627 | -7/Waste | Upgraded with Propulsion slot (x1) 2653 | -7/Waste | Discovered new exit (range 12) 2738 | -7/Waste | Entered Factory 2738 | -7/Factory | Accompanied by 20 allies 2740 | -7/Factory | Upgraded with Weapon slot (x1) 2752 | -7/Factory | Garrison activated, responded to threat 2783 | -7/Factory | Reached level 12 2785 | -7/Factory | Upgraded with Utility slot (x1) 2804 | -7/Factory | Discovered new exit (range 5) 2869 | -7/Factory | Reached level 13 3073 | -7/Factory | Discovered new exit (range 16) 3092 | -7/Factory | Reached level 14 3276 | -7/Factory | Reached level 15 3405 | -7/Factory | High security lockdown imminent 3424 | -7/Factory | Discovered new exit (range 16) 3426 | -7/Factory | Destroyed 14 combat bots 3428 | -7/Factory | Reached level 16 3455 | -7/Factory | Entered another Factory area 3455 | -6/Factory | Accompanied by 2 allies 3457 | -6/Factory | Reached level 17 3461 | -6/Factory | Upgraded with Utility slot (x1) 3463 | -6/Factory | Watched by a mysterious "MATRIX" hacker. 3481 | -6/Factory | Upgraded with Utility slot (x1) 3533 | -6/Factory | Spotted B-75 Beast 3587 | -6/Factory | Garrison activated, responded to threat 3647 | -6/Factory | Upgraded with Utility slot (x1) 3647 | -6/Factory | Found Exp. Targeting Computer 3657 | -6/Factory | Discovered new exit (range 10) 3671 | -6/Factory | Identified exit to Lower Caves 3703 | -6/Factory | Reached level 18 3728 | -6/Factory | Learned 2 Hub_04(d) zone layouts 3770 | -6/Factory | Learned Extension machine intel 3803 | -6/Factory | Learned location of 1 exit from Proximity Caves 3828 | -6/Factory | Identified exit to Factory 3843 | -6/Factory | Learned location of 1 exit from Proximity Caves 3896 | -6/Factory | Learned location of Upper Caves (-4) 3922 | -6/Factory | Destroyed 8 combat bots 3933 | -6/Factory | Learned location of 1 exit from Hub_04(d) 3963 | -6/Factory | Entered Lower Caves 3964 | -6/Lower Caves | Identified exit to Lower Caves 3965 | -6/Lower Caves | Reached level 19 3975 | -6/Lower Caves | Learned Factory security intel 4012 | -6/Lower Caves | Spotted B-75 Beast 4022 | -6/Lower Caves | Destroyed B-75 Beast 4068 | -6/Lower Caves | Encountered a Warlord checkpoint 4233 | -6/Lower Caves | Entered another Lower Caves area 4233 | -6/Lower Caves | Discovered exit to Factory (range 11) 4241 | -6/Lower Caves | Encountered a Warlord checkpoint 4309 | -6/Lower Caves | Entered an active Warlord outpost 4311 | -6/Lower Caves | Learned Factory stockpile data 4311 | -6/Lower Caves | Learned Armory security intel 4311 | -6/Lower Caves | Learned Factory garrison access intel 4342 | -6/Lower Caves | Discovered new exit (range 14) 4390 | -6/Lower Caves | Attacked by a faux Warlord 4432 | -6/Lower Caves | Entered Zion 4438 | -6/Zion | Given the Hacking Drone Bay 4439 | -6/Zion | Found Prototype Device 4439 | -6/Zion | Identified Hacking Drone Bay 4447 | -6/Zion | Discovered new exit (range 15) 4454 | -6/Zion | System corruption cleaned by Quarantine Array 4464 | -6/Zion | Learned Factory scanalyzer intel 4480 | -6/Zion | Learned Factory garrison access intel 4534 | -6/Zion | Learned Factory security intel 4568 | -6/Zion | Entered Proximity Caves 4570 | -5/Proximity Caves | Reached level 20 4589 | -5/Proximity Caves | Learned Factory machine intel 4669 | -5/Proximity Caves | Learned Factory stockpile data 4717 | -5/Proximity Caves | Reached level 21 4774 | -5/Proximity Caves | Destroyed 7 combat bots 4816 | -5/Proximity Caves | Learned location of Warlord (-5) 4903 | -5/Proximity Caves | Entered Factory 4906 | -5/Factory | Loaded intel: 238 machine locations 4907 | -5/Factory | Loaded intel: 4 scanalyzer locations 4908 | -5/Factory | Loaded intel: 4 garrison access locations 4929 | -5/Factory | Upgraded with Utility slot (x1) 4990 | -5/Factory | Identified exit to Upper Caves 5010 | -5/Factory | Discovered new exit (range 17) 5033 | -5/Factory | Reached level 22 5046 | -5/Factory | Garrison activated, responded to threat 5076 | -5/Factory | Sucked down chute 5076 | -5/Factory | Entered Waste 5078 | -5/Waste | Spotted C-40 Crusher 5079 | -5/Waste | Spotted C-40 Crusher 5079 | -5/Waste | Spotted C-40 Crusher 5079 | -5/Waste | Spotted C-40 Crusher 5080 | -5/Waste | Spotted C-40 Crusher 5082 | -5/Waste | Spotted C-40 Crusher 5083 | -5/Waste | Discovered new exit (range 11) 5083 | -5/Waste | Found Prototype Processor 5083 | -5/Waste | Identified Exp. Armor Integrity Analyzer 5085 | -5/Waste | Entered Factory 5088 | -5/Factory | Loaded intel: 4 garrison access locations 5121 | -5/Factory | Spotted B-75 Beast 5168 | -5/Factory | Local machine network offline 5226 | -5/Factory | Build established: Hacker-Sprinter 5226 | -5/Factory | Garrison activated, responded to threat 5319 | -5/Factory | Destroyed 14 combat bots 5567 | -5/Factory | Discovered new exit (range 12) 5570 | -5/Factory | Reached level 23 5652 | -5/Factory | Entered Upper Caves 5733 | -5/Upper Caves | Attracted the attention of an 0b10 checkpoint 5761 | -5/Upper Caves | Learned Factory emergency access door positions 5805 | -5/Upper Caves | Encountered a Warlord checkpoint 5816 | -5/Upper Caves | Discovered new exit (range 5) 5838 | -5/Upper Caves | Attacked by a delusional Derelict stockpiling Unaware 5863 | -5/Upper Caves | Entered another Upper Caves area 5884 | -5/Upper Caves | Discovered new exit (range 8) 5886 | -5/Upper Caves | Learned Factory terminal intel 5945 | -5/Upper Caves | Attracted the attention of an 0b10 checkpoint 5949 | -5/Upper Caves | Spotted B-75 Beast 6014 | -5/Upper Caves | Destroyed B-75 Beast 6060 | -5/Upper Caves | Discovered new exit (range 17) 6144 | -5/Upper Caves | Destroyed 12 combat bots 6175 | -5/Upper Caves | Entered Warlord 6185 | -5/Warlord | System corruption cleaned by Quarantine Array 6227 | -5/Warlord | Met Warlord 6252 | -5/Warlord | Warlord's base attacked by MAIN.C 6299 | -5/Warlord | Found Prototype Piercing Weapon 6299 | -5/Warlord | Identified Vortex Lance 6327 | -5/Warlord | Spotted B-75 Beast 6328 | -5/Warlord | Destroyed B-75 Beast 6414 | -5/Warlord | Spotted B-86 Titan 6428 | -5/Warlord | Destroyed B-86 Titan 6464 | -5/Warlord | Warlord forces counterattacked 6474 | -5/Warlord | Destroyed 7 combat bots 6474 | -5/Warlord | Reached level 24 6543 | -5/Warlord | Destroyed 9 combat bots 6545 | -5/Warlord | Lost 3 allies 6559 | -5/Warlord | Discovered new exit (range 14) 6561 | -5/Warlord | Entered Proximity Caves 6562 | -4/Proximity Caves | Identified exit to Factory 6647 | -4/Proximity Caves | Destroyed 7 combat bots 6725 | -4/Proximity Caves | Attracted the attention of an 0b10 outpost 6743 | -4/Proximity Caves | Reached level 25 6798 | -4/Proximity Caves | Upgraded with Utility slot (x1) 6804 | -4/Proximity Caves | Destroyed 11 combat bots 6808 | -4/Proximity Caves | Learned Research terminal intel 6808 | -4/Proximity Caves | Learned location of 1 exit from Research 6885 | -4/Proximity Caves | Spotted B-86 Titan 6889 | -4/Proximity Caves | Destroyed B-86 Titan 6903 | -4/Proximity Caves | Entered a huge 0b10 base via the front door 6955 | -4/Proximity Caves | Derelicts attacked a huge 0b10 base 6993 | -4/Proximity Caves | Destroyed 7 combat bots 7046 | -4/Proximity Caves | Destroyed 8 combat bots 7120 | -4/Proximity Caves | Destroyed 8 combat bots 7176 | -4/Proximity Caves | Spotted B-86 Titan 7189 | -4/Proximity Caves | Reached level 26 7213 | -4/Proximity Caves | Destroyed B-86 Titan 7287 | -4/Proximity Caves | Entered Factory 7289 | -4/Factory | Loaded intel: 28 terminal locations 7380 | -4/Factory | Discovered new exit (range 9) 7462 | -4/Factory | Discovered new exit (range 6) 7520 | -4/Factory | Identified exit to Upper Caves 7520 | -4/Factory | Identified exit to Extension 7643 | -4/Factory | Spotted B-86 Titan 7652 | -4/Factory | Targeted by mysterious "MATRIX" hacker. 7663 | -4/Factory | Destroyed B-86 Titan 7668 | -4/Factory | Learned Testing stockpile data 7735 | -4/Factory | Learned Research fabricator intel 7787 | -4/Factory | First assault squad dispatched 7789 | -4/Factory | Spotted B-86 Titan 7791 | -4/Factory | Discovered new exit (range 18) 7792 | -4/Factory | Learned location of 1 exit from Quarantine 7798 | -4/Factory | Destroyed B-86 Titan 7857 | -4/Factory | Discovered new exit (range 17) 7863 | -4/Factory | Garrison activated, responded to threat 7863 | -4/Factory | Reached level 27 7876 | -4/Factory | Learned Quarantine emergency access door positions 7884 | -4/Factory | Destroyed 11 combat bots 7904 | -4/Factory | Learned Research terminal intel 7923 | -4/Factory | Identified exit to Research 7954 | -4/Factory | Learned location of Testing (-2) 7995 | -4/Factory | Learned Testing terminal intel 8003 | -4/Factory | Entered Extension 8004 | -4/Extension | Loaded intel: 32 machine locations 8015 | -4/Extension | Rescued A7 8078 | -4/Extension | Rescued a captive Derelict 8079 | -4/Extension | Rescued a captive Derelict 8096 | -4/Extension | Rescued a captive Derelict 8096 | -4/Extension | Spotted B-86 Titan 8117 | -4/Extension | Destroyed B-86 Titan 8121 | -4/Extension | Spotted B-86 Titan 8131 | -4/Extension | Destroyed B-86 Titan 8260 | -4/Extension | Destroyed 9 combat bots 8274 | -4/Extension | Rescued a captive Derelict 8320 | -4/Extension | Learned 2 Proximity Caves zone layouts 8328 | -4/Extension | Disrupted transfer network 8367 | -4/Extension | Learned 12 Factory zone layouts 8386 | -4/Extension | Destroyed 16 combat bots 8403 | -4/Extension | Learned Factory terminal intel 8429 | -4/Extension | Learned location of Archives (-4) 8446 | -4/Extension | Learned Factory emergency access door positions 8452 | -4/Extension | Discovered new exit (range 18) 8452 | -4/Extension | Discovered exit to Research (range 17) 8455 | -4/Extension | Learned Factory scanalyzer intel 8464 | -4/Extension | Learned Research fabricator intel 8482 | -4/Extension | Learned location of 1 exit from Proximity Caves 8503 | -4/Extension | First assault squad dispatched 8562 | -4/Extension | Reached level 28 8586 | -4/Extension | Destroyed 7 combat bots 8645 | -4/Extension | Entered Cetus 8645 | -4/Cetus | Accompanied by 5 allies (A7) 8648 | -4/Cetus | Spotted Cetus Guard 8649 | -4/Cetus | Destroyed Cetus Guard 8650 | -4/Cetus | Acquired a Cetus Manufacturing Module code from A7 8650 | -4/Cetus | Spotted Cetus Guard 8652 | -4/Cetus | Destroyed Cetus Guard 8655 | -4/Cetus | Spotted Cetus Guard 8655 | -4/Cetus | Destroyed Cetus Guard 8655 | -4/Cetus | Spotted Cetus Guard 8659 | -4/Cetus | Allies destroyed Cetus Guard 8684 | -4/Cetus | Started Cetus Manufacturing Module 8709 | -4/Cetus | Manufactured an Enhanced Grunt 8734 | -4/Cetus | Manufactured an Enhanced Grunt 8759 | -4/Cetus | Manufactured an Enhanced Grunt 8784 | -4/Cetus | Manufactured an Enhanced Grunt 8809 | -4/Cetus | Manufactured an Enhanced Grunt 9109 | -4/Cetus | Build established: Commander-Sprinter 9395 | -4/Cetus | Security sweep announced 9421 | -4/Cetus | Discovered new exit (range 17) 9442 | -4/Cetus | Spotted Cetus Guard 9442 | -4/Cetus | Spotted Cetus Guard 9448 | -4/Cetus | Destroyed Cetus Guard 9449 | -4/Cetus | Spotted Cetus Guard 9452 | -4/Cetus | Spotted Cetus Guard 9454 | -4/Cetus | Destroyed Cetus Guard 9460 | -4/Cetus | Destroyed Cetus Guard 9460 | -4/Cetus | Destroyed Cetus Guard 9464 | -4/Cetus | Discovered exit to Research (range 18) 9467 | -4/Cetus | Met Revision 17 9481 | -4/Cetus | Destroyed 9 combat bots 9512 | -4/Cetus | Entered Archives 9512 | -4/Archives | Accompanied by 10 allies (A7) 9535 | -4/Archives | Discovered new exit (range 18) 9542 | -4/Archives | Unable to access archive contents 9544 | -4/Archives | Discovered new exit (range 18) 9547 | -4/Archives | Discovered exit to Research (range 17) 9588 | -4/Archives | Entered Hub_04(d) 9588 | -4/Hub_04(d) | Accompanied by 9 allies 9632 | -4/Hub_04(d) | Network Hub disabled 9639 | -4/Hub_04(d) | Spotted Lightning 9639 | -4/Hub_04(d) | Spotted Lightning 9666 | -4/Hub_04(d) | Discovered exit to Research (range 6) 9700 | -4/Hub_04(d) | Network Hub disabled 9711 | -4/Hub_04(d) | Spotted Lightning 9726 | -4/Hub_04(d) | Allies destroyed Lightning 9737 | -4/Hub_04(d) | Allies destroyed Lightning 9743 | -4/Hub_04(d) | Destroyed 7 combat bots 9773 | -4/Hub_04(d) | Lost 3 allies 9779 | -4/Hub_04(d) | Destroyed Lightning 9785 | -4/Hub_04(d) | Network Hub disabled 9832 | -4/Hub_04(d) | Discovered exit to Research (range 6) 9841 | -4/Hub_04(d) | Entered Research 9841 | -3/Research | Accompanied by 2 allies 9842 | -3/Research | Identified exit to Armory 9843 | -3/Research | Identified exit to Research 9843 | -3/Research | Reached level 29 9844 | -3/Research | Loaded intel: 21 terminal locations 9845 | -3/Research | Loaded intel: 4 fabricator locations 9867 | -3/Research | Spotted B-86 Titan 9874 | -3/Research | Discovered new exit (range 6) 9951 | -3/Research | Allied Derelicts emerged from ambush trap array 9956 | -3/Research | Destroyed 7 combat bots 9964 | -3/Research | Build established: Hacker-Sprinter 9992 | -3/Research | Spotted B-86 Titan 9997 | -3/Research | Local machine network offline 10041 | -3/Research | Revision forces began assault on 0b10 10078 | -3/Research | Discovered exit to Research (range 10) 10180 | -3/Research | Met up with Revision 17++ 10201 | -3/Research | Reached level 30 10265 | -3/Research | Found Prototype Device 10265 | -3/Research | Identified Exp. EM Disruption Field 10372 | -3/Research | Found Prototype Device 10372 | -3/Research | Identified Exp. Thermal Defense Suite 10492 | -3/Research | Destroyed B-86 Titan 10541 | -3/Research | Research terminal network offline 10583 | -3/Research | Entered Quarantine 10623 | -3/Quarantine | Found Alien Artifact 10623 | -3/Quarantine | Identified Subatomic Replicator 10633 | -3/Quarantine | Found Prototype Processor 10633 | -3/Quarantine | Identified Exp. Melee Analysis Suite 10658 | -3/Quarantine | Local machine network offline 10848 | -3/Quarantine | Spotted Fortress 10884 | -3/Quarantine | Discovered new exit (range 6) 10884 | -3/Quarantine | Discovered new exit (range 7) 10886 | -3/Quarantine | Entered Section 7 10910 | -3/Section 7 | Found Alien Artifact 10910 | -3/Section 7 | Identified Spacefold Activator 10972 | -3/Section 7 | Found Alien Artifact 10972 | -3/Section 7 | Identified Integrated Reactor 10972 | -3/Section 7 | Installed Integrated Reactor, increased core energy generation (+10) 11008 | -3/Section 7 | Spotted Alpha 7 11008 | -3/Section 7 | Spotted Alpha 7 11014 | -3/Section 7 | Reached level 31 11041 | -3/Section 7 | Upgraded with Utility slot (x1) 11057 | -3/Section 7 | Core integrity fell below 50% 11071 | -3/Section 7 | Learned Testing emergency access door positions 11076 | -3/Section 7 | Local machine network offline 11081 | -3/Section 7 | Destroyed Alpha 7 11096 | -3/Section 7 | Destroyed Alpha 7 11106 | -3/Section 7 | Found Prototype Processor 11106 | -3/Section 7 | Identified Exp. Target Analyzer 11110 | -3/Section 7 | Found Prototype Device 11110 | -3/Section 7 | Identified Exp. ECM Suite 11129 | -3/Section 7 | P-80 Master assimilated hostile S-43 Plague 11136 | -3/Section 7 | First assault squad dispatched 11154 | -3/Section 7 | Spotted B-99 Colossus 11165 | -3/Section 7 | Spotted Executioner 11165 | -3/Section 7 | Spotted Executioner 11243 | -3/Section 7 | Spotted B-86 Titan 11249 | -3/Section 7 | Spotted S7 Guard 11253 | -3/Section 7 | Destroyed 11 combat bots 11263 | -3/Section 7 | Found Alien Artifact 11263 | -3/Section 7 | Identified Integrated Thermoelectric Network 11263 | -3/Section 7 | Installed Integrated Thermoelectric Network, gained heat-energy exchange potential 11265 | -3/Section 7 | Destroyed S7 Guard 11271 | -3/Section 7 | Scanned by Researcher 11272 | -3/Section 7 | Intercept squad dispatched 11274 | -3/Section 7 | Spotted Tracker 11275 | -3/Section 7 | Spotted Tracker 11276 | -3/Section 7 | Spotted Combat Programmer 11276 | -3/Section 7 | Spotted Combat Programmer 11277 | -3/Section 7 | Core integrity fell below 20% 11283 | -3/Section 7 | Destroyed by Tracker with Linked Autogun Last Messages --------------- 11272_ Slug penetrates G-67 Veteran. 11272_ Acquired Protomatter-61. 11274_ U-05 Engineer builds a Wall. Tracker: "THREAT CONFIRMED. DEPLOY COMBAT PROGRAMMER." 11276_ Penetrated by Slug. 11276_ Slug penetrates Wall. 11279_ Dropped Protomatter-61. 11280_ Cld. Nuclear Pulse Thruster temporarily disabled. 11280_ Slug penetrates Wall. 11280_ Slug penetrates Tracker. 11281_ Imp. Diametric Drive temporarily disabled. 11282_ Cld. VTOL Module temporarily disabled. 11283_ Slug penetrates Tracker. 11283_ Slug penetrates Wall. 11283_ Slug penetrates Tracker. 11283_ Slug penetrates Wall. [Achievement: Punisher] Map ----- +----------------------------------------------------+ | | | | | | | | | | | | | | | | | | | | | | | | | | | | | | | | | | | | | | | | | | | | | | | | | ???????????????????###########?################### | | ???????????????????## @ ##?################### | | ???????????????????## ##?##"""""""""" | | ???????????????????## ##?##" | | ???????????????????## ##?##" | | ???????????????????## ss #####" | | ???????????????????######/#####T# | | ???????????????????### " | | ????????????????????## " | | ????????????????????## ######### | | ???????????????####### #########" | | ??????????????######## ##???????" | | + ### ### ##???????" " | | ###############" ### ##???????" """ | | ##???????" " | | % ##???????" " | | ????########### ##???????" | | ????#########"" ##???????" """""" | | ??????##""" " ##???????" "?????""" | | ??????##"""" " ! ##???????" """""" | | ??????##""!" " !! ###??????" | | ??????##"""%! + !! ###??????" | | ??????##"% ]! # !! %##??????" """""" | | ??????##"" #/"###"# ###??????" "????"""" | | ??????##"% " * " ###??????" """""" | | ??????####"#%## %# ##???????" | +----------------------------------------------------+ Best States ------------- Heat Dissipation 55 Energy Generation 54 Energy Capacity 350 Matter Stores 300 Matter Capacity 300 Sight Range 18 Terrain Scan Density 10 Corruption Containment 12 Resistance: EM 25 Weapon Cycling 25 Phase Shifting 10 Evasion (%) 87 Targeting Accuracy 32 Target Analysis 10 Core Analysis 6 Armor Integrity Analysis 50 Matter Filtering 50 Kinecelleration 40 Offensive Hacking 21 Defensive Hacking 15 Item Schematics ----------------- Lgt. Fission Core | -7/Factory | Hacked Adv. Melee Analysis Suite | -6/Zion | Archive Mni. Drone Bay | -6/Zion | Archive Thermic Laser | -6/Zion | Archive Adv. Transmission Jammer | -6/Zion | Archive Imp. System Shield | -6/Zion | Archive Imp. Transmission Jammer | -6/Zion | Archive Imp. Particle Charger | -6/Zion | Archive Adv. Cooling System | -6/Zion | Archive Phase Cannon | -6/Zion | Archive Adv. Coolant Injector | -6/Zion | Archive Antigrav System | -6/Zion | Archive Hpw. Shock Rifle | -6/Zion | Archive Adv. Signal Interpreter | -6/Zion | Archive Adv. Plasma Cannon | -6/Zion | Archive Robot Schematics ------------------ H-55 Commando | -7/Factory | Hacked Y-54 Guardian | -6/Zion | Archive T-07 Excavator | -6/Zion | Archive E-15 Imp | -6/Zion | Archive Fabricated ------------ Nothing Repaired ---------- Nothing Studied --------- Minigun | -8/Materials | Hacked Cesium-ion Thruster | -7/Factory | Hacked Gauss Rifle | -7/Factory | Hacked Coil Gun | -6/Factory | Hacked Impulse Thruster | -4/Factory | Hacked Railgun | -4/Factory | Hacked Lgt. Quantum Reactor | -3/Research | Hacked Alien Tech Used ----------------- Subatomic Replicator Spacefold Activator Integrated Reactor Integrated Thermoelectric Network Achievements -------------- Deadly Precision Gun Specialist Punisher Challenges ------------ None RPGLIKE | -11 -10 -10 -10 -9 -8 -8 -7 -7 -7 -6 -6 -6 -6 -5 -5 -5 -5 -5 -5 -5 -4 -4 -4 -4 -4 -4 -3 -3 -3 --------- Run | Yrd Mat Min Exi Min Mat Sto Fac Was Fac Fac Low Low Zio Pro Fac Was Fac Upp Upp War Pro Fac Ext Cet Arc Hub Res Qua Sec Levels Raised 30 | . 1 . . 1 3 3 1 1 5 2 1 . . 2 1 . 1 . . 1 2 1 1 . . . 2 . 1 XP Earned 48403 | 3000 1865 750 200 850 4775 4818 1650 200 7483 4275 720 236 170 2572 1083 67 1462 278 519 801 2781 1658 1334 451 153 654 2050 619 929 XP Spent 47800 | 2700 1800 . . . 5160 1100 2000 1900 3950 8750 640 . . . 5000 . . 800 . . 4800 . 2100 . . 2600 . . 4500 Upgrades 49 | 5 3 . . . 10 1 2 2 4 5 4 . . . 6 . . 1 . . 2 . 1 . . 1 . . 2 Propulsion Slot 4 | . 1 . . . 1 1 . 1 . . . . . . . . . . . . . . . . . . . . . Utility Slot 11 | . 1 . . . 2 . 1 . 1 3 . . . . 1 . . . . . 1 . . . . . . . 1 Weapon Slot 4 | 1 1 . . . 1 . . . 1 . . . . . . . . . . . . . . . . . . . . Heat Dissipation 5 | . . . . . 3 . . . . . 2 . . . . . . . . . . . . . . . . . . Energy Generation 3 | . . . . . . . . . 2 . . . . . . . . 1 . . . . . . . . . . . Mass Support 6 | . . . . . 1 . 1 . . 1 . . . . . . . . . . 1 . 1 . . 1 . . . Inventory Capacity 4 | . . . . . 1 . . 1 . 1 . . . . . . . . . . . . . . . . . . 1 Sight Range 2 | . . . . . . . . . . . 2 . . . . . . . . . . . . . . . . . . Ranged Accuracy 5 | 4 . . . . 1 . . . . . . . . . . . . . . . . . . . . . . . . Hack Attack % 2 | . . . . . . . . . . . . . . . 2 . . . . . . . . . . . . . . Hack Defense % 3 | . . . . . . . . . . . . . . . 3 . . . . . . . . . . . . . . Protomatter Created 8939 | . 207 39 . . 278 389 . . 527 465 345 189 . 177 . . 498 208 345 294 1096 972 932 129 161 326 560 476 326 Integrity Restored 8959 | . 504 117 . . 1006 323 . 120 624 304 195 103 . 144 . . 637 144 238 169 697 682 728 35 55 357 578 279 920 Core 7137 | . 475 117 . . 851 250 . 51 472 239 151 80 . 108 . . 498 104 196 134 548 534 474 27 19 300 463 223 823 Parts 1822 | . 29 . . . 155 73 . 69 152 65 44 23 . 36 . . 139 40 42 35 149 148 254 8 36 57 115 56 97 Protomatter Decayed 7237 | . . . . 79 347 132 . 49 657 168 224 131 . 129 . . 176 203 92 280 923 694 650 168 83 257 1314 320 161 Game ------ Seed NetworkBorgRailcannon Manual? 0 Play Time 04:10:46 Cumulative 217.3 hours Start 2026.02.28 @ 17:58:27 End 2026.03.01 @ 22:22:33 Sessions 7 Manual Loads 0 Difficulty Rogue Special Mode Winter2019/RPGLIKE Game No. 214 Rogue 214 Adventurer 0 Explorer 0 Win Type - Total 15 Types 11/0/1/1/0/0/1/0/0/1 Lore% 70 Gallery% 58 Achievement% 54 Wizard Run 0 Options --------- Layout 2 ASCII 0 Keyboard 0 Movement Numpad Keybinds 0 Fullscreen 1 Font 24/Smallcaps Map View 50x44 Zoom Use 0% Tactical HUD 1 Map Filters NONE Filters NONE Steam 1 RUN: c8567f73-2e6b-4ae1-b13a-c78b3b33d167